{"text_format":"1","workbook":"xlsx","n_sheets":6,"sheets":["Auslegung","Ausdruck","Einstellungen","Berechnung","Leistungsdaten","Translation"],"not_rendered":{"charts":8,"images":29,"macros":1,"external_links":0,"defined_names":4,"comments":2,"pivot_tables":0},"unopened":[],"bounds":{"document_bytes":16777216,"sheet_cells":100000,"rows_first":2000,"rows_last":500,"rows_between":2000,"halvings":0,"cell_chars":16384,"cell_head_chars":4096},"cells_cut":0,"cells_raw":0,"read":"whole","date_system":"1900"}

{"sheet":"Auslegung","index":0,"n_rows":55,"n_cols":31,"rows_kept":55,"cut":false,"hidden":false,"merged":[[6,2,6,6],[8,2,8,6],[32,2,32,6],[34,2,34,6],[36,2,36,6],[30,1,30,12],[21,7,21,11],[23,7,23,11],[19,2,19,6],[21,2,21,6],[23,2,23,6],[10,2,10,6],[12,2,12,6],[14,2,14,6],[40,14,41,31],[0,1,0,31],[4,1,4,12],[17,1,17,12],[19,7,19,11],[38,2,38,6],[40,2,40,6],[25,7,25,11],[27,7,27,11],[34,7,34,11],[31,2,31,7],[36,7,36,11],[38,7,38,11],[40,7,40,11],[25,2,25,6],[27,2,27,6]]}
[null,{"$f":"Translation!A4","v":"WWK-Renditerechner"}]
[]
[]
[]
[null,{"$f":"Translation!A5","v":"Bitte wählen Sie Entnahmestellen und Nutzungshäufigkeit"}]
[]
[null,null,{"$f":"Translation!$A$6","v":"Badewanne"}]
[]
[null,null,{"$f":"Translation!$A$7","v":"Dusche"}]
[]
[null,null,{"$f":"Translation!$A$8","v":"Badwaschbecken"}]
[]
[null,null,{"$f":"Translation!$A$9","v":"Küchenspüle"}]
[]
[null,null,{"$f":"Translation!$A$10","v":"Handwaschbecken"}]
[]
[]
[null,{"$f":"Translation!A20","v":"Bitte wählen Sie die Warmwasser-Wärmepumpe"}]
[]
[null,null,{"$f":"Translation!A40","v":"Typ Wärmepumpe"}]
[]
[null,null,{"$f":"Translation!A41","v":"Jahresarbeitszahl"},null,null,null,null,3.96]
[]
[null,null,{"$f":"Translation!A42","v":"Wärmeverluste [kWh/Tag]"},null,null,null,null,0.64800000000000002]
[]
[null,null,{"$f":"Translation!A43","v":"Investitionskosten [€]"},null,null,null,null,2350]
[]
[null,null,{"$f":"Translation!A44","v":"Installationskosten [€]"},null,null,null,null,350]
[]
[]
[null,{"$f":"Translation!A21","v":"Wie erzeugen Sie aktuell Ihr Warmwasser ?"}]
[]
[null,null,{"$f":"Translation!A45","v":"Wärmeerzeuger"}]
[]
[null,null,{"$f":"Translation!A22","v":"Speicher defekt ?"},null,null,null,null,1.1199999999999999]
[]
[null,null,{"$f":"Translation!A42","v":"Wärmeverluste [kWh/Tag]"},null,null,null,null,1.1199999999999999]
[]
[null,null,{"$f":"Translation!A43","v":"Investitionskosten [€]"},null,null,null,null,1550]
[]
[null,null,{"$f":"Translation!A44","v":"Installationskosten [€]"},null,null,null,null,350,null,null,null,null,null,null,{"$f":"Translation!A38","v":"Einsatz des Berechnungstools ausschließlich zur Bestimmung der Wirtschaftlichkeit von Warmwasser-Wärmepumpen. Es ersetzt nicht die Auslegung der erforderlichen Speichergröße von Wärmepumpe und Standspeicher."}]
[]
[null,null,null,null,null,null,null,null,null,null,null,null,null,null,null,null,null,null,null,null,null,null,null,null,null,null,null,null,null,null,"IMT v1.09"]
[]
[]
[]
[]
[]
[]
[]
[]
[]
[]
[]
[null,null,null,null,null,null,null,null,null,null,null,null,null,null,null,null,null,null,null,null,"2 x WPF 52",null,null,null,null,null,null,"2 x WPF 40"]

{"sheet":"Ausdruck","index":1,"n_rows":304,"n_cols":26,"rows_kept":304,"cut":false,"hidden":true,"merged":[[66,1,66,8],[66,9,66,25],[103,1,103,8],[106,1,106,8],[106,9,106,25],[156,1,156,8],[156,9,156,25],[157,1,157,8],[157,9,157,25],[153,1,153,8],[111,1,111,8],[112,9,112,25],[112,1,112,8],[110,9,110,25],[105,1,105,8],[105,9,105,25],[107,1,107,8],[107,9,107,25],[108,1,108,8],[108,9,108,25],[320,5,320,23],[321,5,321,23],[322,5,322,23],[303,1,303,25],[301,1,301,25],[261,16,261,25],[151,1,151,25],[158,9,158,25],[204,9,204,25],[254,1,254,8],[254,9,254,25],[163,5,163,22],[164,5,164,22],[165,5,165,22],[203,1,203,8],[204,1,204,8],[207,9,207,25],[210,1,210,25],[201,1,201,25],[208,1,208,8],[208,9,208,25],[214,16,214,25],[251,1,251,25],[258,1,258,25],[262,5,262,14],[262,16,262,25],[261,5,261,14],[319,5,319,23],[113,1,113,8],[113,9,113,25],[257,1,257,8],[257,9,257,25],[209,1,209,8],[256,1,256,8],[256,9,256,25],[159,1,159,8],[159,9,159,17],[159,18,159,25],[155,1,155,8],[155,9,155,25],[158,1,158,8],[215,16,215,25],[10,9,10,25],[5,9,5,25],[255,9,255,25],[209,9,209,25],[68,1,68,8],[207,1,207,8],[205,1,205,8],[205,9,205,25],[206,1,206,8],[114,1,114,8],[114,9,114,25],[206,9,206,25],[154,1,154,8],[154,9,154,25],[68,9,68,25],[109,1,109,8],[109,9,109,25],[255,1,255,8],[253,1,253,8],[111,9,111,25],[110,1,110,8],[216,5,216,22],[214,5,214,14],[215,5,215,14],[51,1,51,25],[69,1,69,8],[69,9,69,25],[67,1,67,8],[61,1,61,8],[61,9,61,25],[3,1,3,25],[5,1,5,8],[6,1,6,8],[6,9,6,25],[13,9,13,25],[14,1,14,8],[14,9,14,25],[15,1,15,8],[15,9,15,25],[7,1,7,8],[7,9,7,25],[8,1,8,8],[8,9,8,25],[9,1,9,8],[9,9,9,25],[12,1,12,8],[13,1,13,8],[10,1,10,8],[53,1,53,8],[55,1,55,8],[55,9,55,25],[57,9,57,25],[59,1,59,8],[59,9,59,25],[56,1,56,8],[57,1,57,8],[56,9,56,25],[58,1,58,8],[58,9,58,25],[62,1,62,8],[62,9,62,25],[60,9,60,25],[0,21,0,26],[1,25,1,26],[67,9,67,25],[70,1,70,8],[70,9,70,25],[104,1,104,8],[104,9,104,25],[101,1,101,25],[16,1,16,8],[16,9,16,25],[17,1,17,8],[17,9,17,25],[54,1,54,8],[54,9,54,25],[60,1,60,8],[65,9,65,25],[63,1,63,8],[63,9,63,25],[65,1,65,8],[64,1,64,8],[64,9,64,25]]}
[{"$f":"Translation!A4","v":"WWK-Renditerechner"}]
[null,null,null,null,null,null,null,null,null,null,null,null,null,null,null,null,null,null,null,null,null,null,null,null,null,{"$f":"RIGHT(Auslegung!AE43,FIND(\" \",Auslegung!AE43)+1)","v":"v1.09"}]
[]
[null,{"$f":"Translation!A113","v":"Eingabewerte"}]
[]
[null,{"$f":"Translation!A103","v":"Entnahmestellen"},null,null,null,null,null,null,null,{"$f":"Translation!A104","v":"Nutzungshäufigkeit"}]
[null,{"$f":"Translation!$A$6","v":"Badewanne"},null,null,null,null,null,null,null,{"$f":"Berechnung!A5","v":"2 x pro Woche"}]
[null,{"$f":"Translation!$A$7","v":"Dusche"},null,null,null,null,null,null,null,{"$f":"Berechnung!C5","v":"15 x pro Woche"}]
[null,{"$f":"Translation!$A$8","v":"Badwaschbecken"},null,null,null,null,null,null,null,{"$f":"Berechnung!E5","v":"8 x pro Tag"}]
[null,{"$f":"Translation!$A$9","v":"Küchenspüle"},null,null,null,null,null,null,null,{"$f":"Berechnung!G5","v":"4 x pro Tag"}]
[null,{"$f":"Translation!$A$10","v":"Handwaschbecken"},null,null,null,null,null,null,null,{"$f":"Berechnung!I5","v":"3 x pro Tag"}]
[]
[null,{"$f":"Translation!A105","v":"Warmwasser-Wärmepumpe"}]
[null,{"$f":"Translation!A40","v":"Typ Wärmepumpe"},null,null,null,null,"Stiebel Eltron GmbH & Co. KG",null,null,{"$f":"Berechnung!C61","v":"WWK 220 electronic"}]
[null,{"$f":"Translation!A41","v":"Jahresarbeitszahl"},null,null,null,null,"Dr.-Stiebel-Straße",null,null,{"$f":"FIXED(Berechnung!C62,2)","v":"3,96"}]
[null,{"$f":"Translation!A42","v":"Wärmeverluste [kWh/Tag]"},null,null,null,null,"37603 Holzminden",null,null,{"$f":"Berechnung!C63","v":0.64800000000000002}]
[null,{"$f":"Translation!A43","v":"Investitionskosten [€]"},null,null,null,null,"05531 / 702 110",null,null,{"$f":"Berechnung!C64","v":2350}]
[null,{"$f":"Translation!A44","v":"Installationskosten [€]"},null,null,null,null,null,null,null,{"$f":"Berechnung!C65","v":350}]
[]
[]
[]
[]
[]
[]
[]
[]
[]
[]
[]
[]
[]
[]
[]
[]
[]
[]
[]
[]
[]
[]
[]
[]
[]
[]
[]
[]
[]
[]
[]
[]
[]
[null,{"$f":"Translation!A113","v":"Eingabewerte"}]
[]
[null,{"$f":"Translation!A112","v":"Alter Wärmeerzeuger"}]
[null,{"$f":"Translation!A45","v":"Wärmeerzeuger"},null,null,null,null,null,null,null,{"$f":"Berechnung!C77","v":"E-Speicher SHW 200 S"}]
[null,{"$f":"Translation!A22","v":"Speicher defekt ?"},null,null,null,null,null,null,null,{"$f":"Berechnung!Q5","v":"Austausch ist erforderlich"}]
[null,{"$f":"Translation!A42","v":"Wärmeverluste [kWh/Tag]"},null,null,null,null,null,null,null,{"$f":"Berechnung!C79","v":1.1199999999999999}]
[null,{"$f":"Translation!A43","v":"Investitionskosten [€]"},null,null,null,null,null,null,null,{"$f":"Berechnung!C80","v":1550}]
[null,{"$f":"Translation!A44","v":"Installationskosten [€]"},null,null,null,null,null,null,null,{"$f":"Berechnung!C81","v":350}]
[null,{"$f":"Translation!A107","v":"Speichertemperatur"},null,null,null,null,null,null,null,{"$f":"Berechnung!C83&\" °C\"","v":"55 °C"}]
[null,{"$f":"Translation!A116","v":"Wirkungsgrad WWB"},null,null,null,null,null,null,null,{"$f":"Berechnung!C87","v":0.95}]
[null,{"$f":"Translation!A114","v":"Energieträger"},null,null,null,null,null,null,null,{"$f":"IF(Berechnung!C84=1,Translation!A108,IF(Berechnung!C84=2,Translation!A109,IF(Berechnung!C84=3,Translation!A110,Translation!A111)))","v":"Strom"}]
[null,{"$f":"Translation!A115","v":"Energiepreis"},null,null,null,null,null,null,null,{"$f":"Berechnung!C86&\" Ct/kWh\"","v":"28 Ct/kWh"}]
[null,{"$f":"Translation!A117","v":"Preissteigerung"},null,null,null,null,null,null,null,{"$f":"Berechnung!C88&\" \"&Translation!A84","v":"3 % pro Jahr"}]
[null,{"$f":"Translation!A118","v":"CO2-Emmision"},null,null,null,null,null,null,null,{"$f":"Berechnung!C85&\" g/kWh\"","v":"621 g/kWh"}]
[]
[]
[]
[]
[]
[]
[]
[]
[]
[]
[]
[]
[]
[]
[]
[]
[]
[]
[]
[]
[]
[]
[]
[]
[]
[]
[]
[]
[]
[]
[]
[]
[]
[]
[]
[]
[null,{"$f":"Translation!A18","v":"Energiebedarf"}]
[]
[]
[]
[]
[]
[]
[]
[]
[]
[]
[]
[]
[]
[]
[]
[]
[]
[]
[]
[]
[]
[]
[]
[]
[]
[]
[]
[]
[]
[]
[]
[]
[]
[]
[]
[]
[]
[]
[]
[]
[]
[]
[]
[]
[]
[]
[]
[]
[]
[null,{"$f":"Translation!A19","v":"Energiekosten"}]
[]
[]
[]
[]
[]
[]
[]
[]
[]
[]
[]
[]
[]
[]
[]
[]
[]
[]
[]
[]
[]
[]
[]
[]
[]
[]
[]
[]
[]
[]
[]
[]
[]
[]
[]
[]
[]
[]
[]
[]
[]
[]
[]
[]
[]
[]
[]
[]
[]
[null,{"$f":"Translation!A46","v":"Amortisation"}]
[]
[]
[]
[]
[]
[]
[]
[]
[]
[]
[]
[]
[]
[]
[]
[]
[]
[]
[]
[]
[]
[]
[]
[]
[]
[]
[]
[]
[]
[]
[]
[]
[]
[]
[]
[]
[]
[]
[]
[]
[]
[]
[]
[]
[]
[]
[]
[]
[]
[null,{"$f":"Translation!A54","v":"Rendite"}]
[]
[]
[]
[]
[]
[]
[]
[]
[]
[]
[]
[]
[]
[]
[]
[]
[]
[]
[]
[]
[]
[]
[]
[]
[]
[]
[]
[]
[]
[]
[]
[]
[]
[]
[]
[]
[]
[]
[]
[]
[]
[]
[]
[]
[]
[]
[]
[]
[]
[null,{"$f":"Translation!A119","v":"Rechtliche Hinweise"}]
[]
[null,{"$f":"Translation!A120","v":"Stiebel Eltron übernimmt keinerlei Gewährleistung oder Garantie dafür, dass die bereitgestellten Angaben, Werte und Informationen oder die mit Hilfe bzw. anhand dieser Informationen, Werte und Angaben ermittelten Werte und Angaben in jeder Hinsicht vollständig, genau, richtig und aktuell sind. \n\nStiebel Eltron behält sich das Recht vor, jederzeit und ohne vorherige Ankündigung Änderungen der bereitgestellten Angaben, Werte und Informationen vorzunehmen.\nIrrtum und Änderungen sind ausdrücklich vorbehalten.\nKeine der bereitgestellten Angaben, Werte und Informationen oder der mit Hilfe bzw. anhand dieser Angaben, Werte und Informationen ermittelten Werte und Angaben sind als Grundlage für eine finanzielle Entscheidung oder für einen sonstigen Zweck anzusehen, sondern dienen vielmehr nur als eine erste unverbindliche Information und als Hilfe zur ersten Orientierung.\n\nUnter keinen Umständen ersetzt die Planungshilfe die Beratung durch Stiebel Eltron oder einen autorisierten Fachplaner.\n\nBitte wenden Sie sich für die konkrete Planung des Projektes an Stiebel Eltron oder einen anderen autorisierten Fachplaner.\n\nDie Haftung von Stiebel Eltron für Schäden jeglicher Art, die sich möglicherweise aus der Nutzung oder Verwendung der bereitgestellten Informationen, Werte und Angaben oder der mit Hilfe bzw. anhand dieser Angaben, Werte und Informationen ermittelten Werte und Angaben, ergeben, ist ausgeschlossen. Dieser Haftungsausschluss gilt nicht, wenn der Schaden auf Vorsatz oder grobe Fahrlässigkeit von Stiebel Eltron zurückzuführen ist sowie bei einer Verletzung des Lebens, des Körpers oder der Gesundheit."}]

{"sheet":"Einstellungen","index":2,"n_rows":93,"n_cols":9,"rows_kept":93,"cut":false,"hidden":true,"merged":[[155,9,156,11]]}
[]
[]
[]
[]
[]
[]
[null,null,{"$f":"Translation!A69","v":"Einstellungen"}]
[null,null,null,null,null,null,null,null,"Text Übersetzung \"Wirklich zurücksetzen ?\""]
[]
[null,null,{"$f":"Translation!A76","v":"Nutzungsdauer Warmwasser"},49,{"$f":"Translation!A80","v":"Wochen/Jahr"},null,null,null,{"$f":"Translation!A91","v":"Alle Änderungen werden verworfen. Fortfahren?"}]
[]
[null,null,{"$f":"Translation!A81","v":"Kaltwassertemperatur"},10,"°C",null,null,null,{"$f":"Translation!A69","v":"Einstellungen"}]
[]
[null,null,{"$f":"Translation!A77","v":"CO2-Emmision Strom"},621,"g/kWh"]
[]
[null,null,{"$f":"Translation!A78","v":"CO2-Emmision Öl"},321,"g/kWh"]
[]
[null,null,{"$f":"Translation!A79","v":"CO2-Emmision Gas"},253,"g/kWh"]
[]
[null,null,{"$f":"Translation!A85","v":"Wärmeverluste Warmwasserverteilung"},10,"%"]
[]
[null,null,{"$f":"Translation!A93","v":"Anteil integrierter Heizstab Wärmepumpe"},2,"%"]
[]
[null,null,{"$f":"Translation!A94","v":"Guthabenzinssatz bei Bank-Geldanlage"},2,{"$f":"Translation!A84","v":"% pro Jahr"}]
[]
[]
[]
[]
[null,null,{"$f":"Translation!$A$86","v":"Mittlerer Durchfluss"},10,{"$f":"Translation!$A$89","v":"Liter/min"}]
[]
[null,null,{"$f":"Translation!$A$87","v":"Entnahmedauer"},12,{"$f":"Translation!$A$90","v":"min"}]
[]
[null,null,{"$f":"Translation!$A$88","v":"Entnahmetemperatur"},40,"°C"]
[]
[]
[]
[]
[null,null,{"$f":"Translation!$A$86","v":"Mittlerer Durchfluss"},8,{"$f":"Translation!$A$89","v":"Liter/min"}]
[]
[null,null,{"$f":"Translation!$A$87","v":"Entnahmedauer"},6,{"$f":"Translation!$A$90","v":"min"}]
[]
[null,null,{"$f":"Translation!$A$88","v":"Entnahmetemperatur"},38,"°C"]
[]
[]
[]
[]
[null,null,{"$f":"Translation!$A$86","v":"Mittlerer Durchfluss"},4,{"$f":"Translation!$A$89","v":"Liter/min"}]
[]
[null,null,{"$f":"Translation!$A$87","v":"Entnahmedauer"},0.5,{"$f":"Translation!$A$90","v":"min"}]
[]
[null,null,{"$f":"Translation!$A$88","v":"Entnahmetemperatur"},40,"°C"]
[]
[]
[]
[]
[null,null,{"$f":"Translation!$A$86","v":"Mittlerer Durchfluss"},4,{"$f":"Translation!$A$89","v":"Liter/min"}]
[]
[null,null,{"$f":"Translation!$A$87","v":"Entnahmedauer"},0.5,{"$f":"Translation!$A$90","v":"min"}]
[]
[null,null,{"$f":"Translation!$A$88","v":"Entnahmetemperatur"},50,"°C"]
[]
[]
[]
[]
[null,null,{"$f":"Translation!$A$86","v":"Mittlerer Durchfluss"},2,{"$f":"Translation!$A$89","v":"Liter/min"}]
[]
[null,null,{"$f":"Translation!$A$87","v":"Entnahmedauer"},0.5,{"$f":"Translation!$A$90","v":"min"}]
[]
[null,null,{"$f":"Translation!$A$88","v":"Entnahmetemperatur"},40,"°C"]
[]
[]
[]
[]
[null,null,{"$f":"Translation!A73","v":"Strompreis"},28,{"$f":"Translation!$A$92","v":"Ct/kWh"}]
[]
[null,null,{"$f":"Translation!A74","v":"Ölpreis"},8.5,{"$f":"Translation!$A$92","v":"Ct/kWh"}]
[]
[null,null,{"$f":"Translation!A75","v":"Gaspreis"},7.5,{"$f":"Translation!$A$92","v":"Ct/kWh"}]
[]
[null,null,{"$f":"Translation!A82","v":"Strompreissteigerung"},3,{"$f":"Translation!$A$84","v":"% pro Jahr"}]
[]
[null,null,{"$f":"Translation!A83","v":"Preissteigerung Öl/Gas"},5,{"$f":"Translation!$A$84","v":"% pro Jahr"}]
[]
[]
[]
[]
[null,null,{"$f":"Translation!A101","v":"Jährlicher Ertrag Solaranlage"},950,"kWh / KWp"]
[]
[null,null,{"$f":"Translation!A97","v":"Eigenverbrauchsanteil"},40,"%"]
[]
[null,null,{"$f":"Translation!A99","v":"Strombedarf Haushalt"},4000,{"$f":"Translation!A27","v":"kWh/Jahr"}]
[]
[null,null,{"$f":"Translation!A100","v":"Einspeisevergütung"},12.9,{"$f":"Translation!A92","v":"Ct/kWh"}]

{"sheet":"Berechnung","index":3,"n_rows":176,"n_cols":22,"rows_kept":176,"cut":false,"hidden":true,"merged":[[190,7,190,8],[190,9,190,10],[190,11,190,12],[187,7,187,8],[187,9,187,10],[187,11,187,12],[188,7,188,8],[188,9,188,10],[188,11,188,12],[189,7,189,8],[189,9,189,10],[189,11,189,12],[184,7,184,8],[184,9,184,10],[184,11,184,12],[185,7,185,8],[185,9,185,10],[185,11,185,12],[186,7,186,8],[186,9,186,10],[186,11,186,12],[181,7,181,8],[181,9,181,10],[181,11,181,12],[182,7,182,8],[182,9,182,10],[182,11,182,12],[183,7,183,8],[183,9,183,10],[183,11,183,12],[178,7,178,8],[178,9,178,10],[178,11,178,12],[179,7,179,8],[179,9,179,10],[179,11,179,12],[180,7,180,8],[180,9,180,10],[180,11,180,12],[175,7,175,8],[175,9,175,10],[175,11,175,12],[176,7,176,8],[176,9,176,10],[176,11,176,12],[177,7,177,8],[177,9,177,10],[177,11,177,12],[169,7,169,8],[169,9,169,10],[169,11,169,12],[173,7,173,8],[173,9,173,10],[173,11,173,12],[174,7,174,8],[174,9,174,10],[174,11,174,12],[164,7,164,8],[164,9,164,10],[164,11,164,12],[172,7,172,8],[172,9,172,10],[172,11,172,12],[166,7,166,8],[166,9,166,10],[166,11,166,12],[165,7,165,8],[165,9,165,10],[165,11,165,12],[170,7,170,8],[170,9,170,10],[170,11,170,12],[171,7,171,8],[171,9,171,10],[171,11,171,12],[167,7,167,8],[167,9,167,10],[167,11,167,12],[168,7,168,8],[168,9,168,10],[168,11,168,12],[163,7,163,8],[163,9,163,10],[163,11,163,12],[134,7,134,8],[134,9,134,10],[134,11,134,12],[127,9,127,10],[127,11,127,12],[127,7,127,8],[128,9,128,10],[128,11,128,12],[129,7,129,8],[129,9,129,10],[129,11,129,12],[130,7,130,8],[130,9,130,10],[130,11,130,12],[128,7,128,8],[131,7,131,8],[131,9,131,10],[131,11,131,12],[132,7,132,8],[132,9,132,10],[132,11,132,12],[124,7,124,8],[124,9,124,10],[124,11,124,12],[125,7,125,8],[125,9,125,10],[125,11,125,12],[126,7,126,8],[126,9,126,10],[126,11,126,12],[121,7,121,8],[121,9,121,10],[121,11,121,12],[122,7,122,8],[122,9,122,10],[122,11,122,12],[123,7,123,8],[123,9,123,10],[123,11,123,12],[118,7,118,8],[118,9,118,10],[118,11,118,12],[119,7,119,8],[119,9,119,10],[119,11,119,12],[120,7,120,8],[120,9,120,10],[120,11,120,12],[115,7,115,8],[115,9,115,10],[115,11,115,12],[116,7,116,8],[116,9,116,10],[116,11,116,12],[117,7,117,8],[117,9,117,10],[117,11,117,12],[112,7,112,8],[112,9,112,10],[112,11,112,12],[113,7,113,8],[113,9,113,10],[113,11,113,12],[114,7,114,8],[114,9,114,10],[114,11,114,12],[109,7,109,8],[109,9,109,10],[109,11,109,12],[110,7,110,8],[110,9,110,10],[110,11,110,12],[111,7,111,8],[111,9,111,10],[111,11,111,12],[106,7,106,8],[106,9,106,10],[106,11,106,12],[107,7,107,8],[107,9,107,10],[107,11,107,12],[108,7,108,8],[108,9,108,10],[108,11,108,12],[101,11,101,12],[102,7,102,8],[102,9,102,10],[103,7,103,8],[103,9,103,10],[104,7,104,8],[104,9,104,10],[104,11,104,12],[105,7,105,8],[105,9,105,10],[105,11,105,12],[93,7,93,8],[93,9,93,10],[93,11,93,12],[94,7,94,8],[94,9,94,10],[94,11,94,12],[95,7,95,8],[95,9,95,10],[95,11,95,12],[62,7,62,8],[2,2,3,3],[64,0,64,1],[65,0,65,1],[71,0,71,1],[72,0,72,1],[67,0,67,1],[92,7,92,8],[61,0,61,1],[60,0,60,1],[82,0,82,1],[83,0,83,1],[84,0,84,1],[85,0,85,1],[86,0,86,1],[87,0,87,1],[88,0,88,1],[89,0,89,1],[90,0,90,1],[2,4,3,5],[2,0,3,1],[62,0,62,1],[63,0,63,1],[61,7,61,8],[94,0,94,1],[104,0,104,1],[105,0,105,1],[106,0,106,1],[99,0,99,1],[100,0,100,1],[97,0,97,1],[75,0,75,1],[76,0,76,1],[77,0,77,1],[78,0,78,1],[79,0,79,1],[80,0,80,1],[81,0,81,1],[91,0,91,1],[92,0,92,1],[93,0,93,1],[96,0,96,1],[102,0,102,1],[120,0,120,1],[121,0,121,1],[117,0,117,1],[2,18,3,19],[101,0,101,1],[95,0,95,1],[98,0,98,1],[115,0,115,1],[116,0,116,1],[118,0,118,1],[109,0,109,1],[112,0,112,1],[113,0,113,1],[114,0,114,1],[66,0,66,1],[73,0,73,1],[68,0,68,1],[69,0,69,1],[74,0,74,1],[70,0,70,1],[107,0,107,1],[108,0,108,1],[110,0,110,1],[103,0,103,1],[2,20,3,21],[2,22,3,23],[2,24,3,25],[2,26,3,27],[60,14,60,15],[60,16,60,17],[60,7,60,8],[60,9,60,13],[2,10,3,11],[2,12,3,13],[2,14,3,15],[2,16,3,17],[2,6,3,7],[2,8,3,9],[135,11,135,12],[136,7,136,8],[136,9,136,10],[136,11,136,12],[137,7,137,8],[137,9,137,10],[137,11,137,12],[127,0,127,1],[128,0,128,1],[135,7,135,8],[135,9,135,10],[133,7,133,8],[133,9,133,10],[133,11,133,12],[125,0,125,1],[126,0,126,1],[119,0,119,1],[122,0,122,1],[111,0,111,1],[96,7,96,8],[96,9,96,10],[96,11,96,12],[97,7,97,8],[97,9,97,10],[97,11,97,12],[98,7,98,8],[123,0,123,1],[124,0,124,1],[98,9,98,10],[98,11,98,12],[99,7,99,8],[99,9,99,10],[99,11,99,12],[100,7,100,8],[100,9,100,10],[100,11,100,12],[101,7,101,8],[101,9,101,10],[143,11,143,12],[139,7,139,8],[139,9,139,10],[139,11,139,12],[142,7,142,8],[143,7,143,8],[140,9,140,10],[141,9,141,10],[140,7,140,8],[141,7,141,8],[140,11,140,12],[141,11,141,12],[138,7,138,8],[138,9,138,10],[138,11,138,12],[148,11,148,12],[149,9,149,10],[149,11,149,12],[144,7,144,8],[144,9,144,10],[144,11,144,12],[146,7,146,8],[146,9,146,10],[146,11,146,12],[147,7,147,8],[147,9,147,10],[147,11,147,12],[148,7,148,8],[149,7,149,8],[148,9,148,10],[145,9,145,10],[145,11,145,12],[145,7,145,8],[142,9,142,10],[142,11,142,12],[143,9,143,10],[150,7,150,8],[150,9,150,10],[150,11,150,12],[151,7,151,8],[151,9,151,10],[151,11,151,12],[152,7,152,8],[152,9,152,10],[152,11,152,12],[153,7,153,8],[153,9,153,10],[153,11,153,12],[154,7,154,8],[154,9,154,10],[154,11,154,12],[155,7,155,8],[155,9,155,10],[155,11,155,12],[156,7,156,8],[156,9,156,10],[156,11,156,12],[157,7,157,8],[157,9,157,10],[157,11,157,12],[158,7,158,8],[158,9,158,10],[158,11,158,12],[162,7,162,8],[162,9,162,10],[162,11,162,12],[159,7,159,8],[159,9,159,10],[159,11,159,12],[160,7,160,8],[160,9,160,10],[160,11,160,12],[161,7,161,8],[161,9,161,10],[161,11,161,12]]}
["VBA-Zugriff"]
["Comboboxen"]
["Badewanne",null,"Dusche",null,"Badwaschbecken",null,"Küchenspüle",null,"Handwaschbecken",null,"Sprachen",null,null,null,null,null,"Speicher defekt ?"]
[]
["2 x pro Woche",{"$f":"VLOOKUP(A5,A6:B50,2,FALSE)","v":2},"15 x pro Woche",{"$f":"VLOOKUP(C5,C6:D50,2,FALSE)","v":15},"8 x pro Tag",{"$f":"VLOOKUP(E5,E6:F50,2,FALSE)*7","v":56},"4 x pro Tag",{"$f":"VLOOKUP(G5,G6:H50,2,FALSE)*7","v":28},"3 x pro Tag",{"$f":"VLOOKUP(I5,I6:J50,2,FALSE)*7","v":21},1,{"$f":"VLOOKUP(K5,K7:L49,2,FALSE)","v":"Deutsch"},null,null,null,null,"Austausch ist erforderlich",{"$f":"IF(Q5=Q7,TRUE,FALSE)","v":true}]
[]
[{"$f":"Translation!A13","v":"Keine Badewanne"},0,{"$f":"Translation!A14","v":"Keine Dusche"},0,{"$f":"Translation!A15","v":"Kein Waschbecken"},0,{"$f":"Translation!A16","v":"Keine Küchenspüle"},0,{"$f":"Translation!A17","v":"Kein Waschbecken"},0,1,"Deutsch",null,null,null,null,{"$f":"Translation!A23","v":"Austausch ist erforderlich"}]
[{"$f":"B8&\" x \"&Translation!$A$11","v":"1 x pro Woche"},1,{"$f":"D8&\" x \"&Translation!$A$11","v":"1 x pro Woche"},1,{"$f":"F8&\" x \"&Translation!$A$12","v":"1 x pro Tag"},1,{"$f":"H8&\" x \"&Translation!$A$12","v":"1 x pro Tag"},1,{"$f":"J8&\" x \"&Translation!$A$12","v":"1 x pro Tag"},1,2,"English Int",null,null,null,null,{"$f":"Translation!A24","v":"Austausch nicht erforderlich"}]
[{"$f":"B9&\" x \"&Translation!$A$11","v":"2 x pro Woche"},2,{"$f":"D9&\" x \"&Translation!$A$11","v":"2 x pro Woche"},2,{"$f":"F9&\" x \"&Translation!$A$12","v":"2 x pro Tag"},2,{"$f":"H9&\" x \"&Translation!$A$12","v":"2 x pro Tag"},2,{"$f":"J9&\" x \"&Translation!$A$12","v":"2 x pro Tag"},2,3,"English UK"]
[{"$f":"B10&\" x \"&Translation!$A$11","v":"3 x pro Woche"},3,{"$f":"D10&\" x \"&Translation!$A$11","v":"3 x pro Woche"},3,{"$f":"F10&\" x \"&Translation!$A$12","v":"3 x pro Tag"},3,{"$f":"H10&\" x \"&Translation!$A$12","v":"3 x pro Tag"},3,{"$f":"J10&\" x \"&Translation!$A$12","v":"3 x pro Tag"},3,4,"Nederlands"]
[{"$f":"B11&\" x \"&Translation!$A$11","v":"4 x pro Woche"},4,{"$f":"D11&\" x \"&Translation!$A$11","v":"4 x pro Woche"},4,{"$f":"F11&\" x \"&Translation!$A$12","v":"4 x pro Tag"},4,{"$f":"H11&\" x \"&Translation!$A$12","v":"4 x pro Tag"},4,{"$f":"J11&\" x \"&Translation!$A$12","v":"4 x pro Tag"},4,5,"Francais"]
[{"$f":"B12&\" x \"&Translation!$A$11","v":"5 x pro Woche"},5,{"$f":"D12&\" x \"&Translation!$A$11","v":"5 x pro Woche"},5,{"$f":"F12&\" x \"&Translation!$A$12","v":"5 x pro Tag"},5,{"$f":"H12&\" x \"&Translation!$A$12","v":"5 x pro Tag"},5,{"$f":"J12&\" x \"&Translation!$A$12","v":"5 x pro Tag"},5,6,"Slovak"]
[{"$f":"B13&\" x \"&Translation!$A$11","v":"6 x pro Woche"},6,{"$f":"D13&\" x \"&Translation!$A$11","v":"6 x pro Woche"},6,{"$f":"F13&\" x \"&Translation!$A$12","v":"6 x pro Tag"},6,{"$f":"H13&\" x \"&Translation!$A$12","v":"6 x pro Tag"},6,{"$f":"J13&\" x \"&Translation!$A$12","v":"6 x pro Tag"},6,7,"tecalor"]
[{"$f":"B14&\" x \"&Translation!$A$11","v":"7 x pro Woche"},7,{"$f":"D14&\" x \"&Translation!$A$11","v":"7 x pro Woche"},7,{"$f":"F14&\" x \"&Translation!$A$12","v":"7 x pro Tag"},7,{"$f":"H14&\" x \"&Translation!$A$12","v":"7 x pro Tag"},7,{"$f":"J14&\" x \"&Translation!$A$12","v":"7 x pro Tag"},7]
[{"$f":"B15&\" x \"&Translation!$A$11","v":"8 x pro Woche"},8,{"$f":"D15&\" x \"&Translation!$A$11","v":"8 x pro Woche"},8,{"$f":"F15&\" x \"&Translation!$A$12","v":"8 x pro Tag"},8,{"$f":"H15&\" x \"&Translation!$A$12","v":"8 x pro Tag"},8,{"$f":"J15&\" x \"&Translation!$A$12","v":"8 x pro Tag"},8]
[{"$f":"B16&\" x \"&Translation!$A$11","v":"9 x pro Woche"},9,{"$f":"D16&\" x \"&Translation!$A$11","v":"9 x pro Woche"},9,{"$f":"F16&\" x \"&Translation!$A$12","v":"9 x pro Tag"},9,{"$f":"H16&\" x \"&Translation!$A$12","v":"9 x pro Tag"},9,{"$f":"J16&\" x \"&Translation!$A$12","v":"9 x pro Tag"},9]
[{"$f":"B17&\" x \"&Translation!$A$11","v":"10 x pro Woche"},10,{"$f":"D17&\" x \"&Translation!$A$11","v":"10 x pro Woche"},10,{"$f":"F17&\" x \"&Translation!$A$12","v":"10 x pro Tag"},10,{"$f":"H17&\" x \"&Translation!$A$12","v":"10 x pro Tag"},10,{"$f":"J17&\" x \"&Translation!$A$12","v":"10 x pro Tag"},10]
[{"$f":"B18&\" x \"&Translation!$A$11","v":"11 x pro Woche"},11,{"$f":"D18&\" x \"&Translation!$A$11","v":"11 x pro Woche"},11,{"$f":"F18&\" x \"&Translation!$A$12","v":"11 x pro Tag"},11,{"$f":"H18&\" x \"&Translation!$A$12","v":"11 x pro Tag"},11,{"$f":"J18&\" x \"&Translation!$A$12","v":"11 x pro Tag"},11]
[{"$f":"B19&\" x \"&Translation!$A$11","v":"12 x pro Woche"},12,{"$f":"D19&\" x \"&Translation!$A$11","v":"12 x pro Woche"},12,{"$f":"F19&\" x \"&Translation!$A$12","v":"12 x pro Tag"},12,{"$f":"H19&\" x \"&Translation!$A$12","v":"12 x pro Tag"},12,{"$f":"J19&\" x \"&Translation!$A$12","v":"12 x pro Tag"},12]
[{"$f":"B20&\" x \"&Translation!$A$11","v":"13 x pro Woche"},13,{"$f":"D20&\" x \"&Translation!$A$11","v":"13 x pro Woche"},13,{"$f":"F20&\" x \"&Translation!$A$12","v":"13 x pro Tag"},13,{"$f":"H20&\" x \"&Translation!$A$12","v":"13 x pro Tag"},13,{"$f":"J20&\" x \"&Translation!$A$12","v":"13 x pro Tag"},13]
[{"$f":"B21&\" x \"&Translation!$A$11","v":"14 x pro Woche"},14,{"$f":"D21&\" x \"&Translation!$A$11","v":"14 x pro Woche"},14,{"$f":"F21&\" x \"&Translation!$A$12","v":"14 x pro Tag"},14,{"$f":"H21&\" x \"&Translation!$A$12","v":"14 x pro Tag"},14,{"$f":"J21&\" x \"&Translation!$A$12","v":"14 x pro Tag"},14]
[{"$f":"B22&\" x \"&Translation!$A$11","v":"15 x pro Woche"},15,{"$f":"D22&\" x \"&Translation!$A$11","v":"15 x pro Woche"},15,{"$f":"F22&\" x \"&Translation!$A$12","v":"15 x pro Tag"},15,{"$f":"H22&\" x \"&Translation!$A$12","v":"15 x pro Tag"},15,{"$f":"J22&\" x \"&Translation!$A$12","v":"15 x pro Tag"},15]
[{"$f":"B23&\" x \"&Translation!$A$11","v":"16 x pro Woche"},16,{"$f":"D23&\" x \"&Translation!$A$11","v":"16 x pro Woche"},16,{"$f":"F23&\" x \"&Translation!$A$12","v":"16 x pro Tag"},16,{"$f":"H23&\" x \"&Translation!$A$12","v":"16 x pro Tag"},16,{"$f":"J23&\" x \"&Translation!$A$12","v":"16 x pro Tag"},16]
[{"$f":"B24&\" x \"&Translation!$A$11","v":"17 x pro Woche"},17,{"$f":"D24&\" x \"&Translation!$A$11","v":"17 x pro Woche"},17,{"$f":"F24&\" x \"&Translation!$A$12","v":"17 x pro Tag"},17,{"$f":"H24&\" x \"&Translation!$A$12","v":"17 x pro Tag"},17,{"$f":"J24&\" x \"&Translation!$A$12","v":"17 x pro Tag"},17]
[{"$f":"B25&\" x \"&Translation!$A$11","v":"18 x pro Woche"},18,{"$f":"D25&\" x \"&Translation!$A$11","v":"18 x pro Woche"},18,{"$f":"F25&\" x \"&Translation!$A$12","v":"18 x pro Tag"},18,{"$f":"H25&\" x \"&Translation!$A$12","v":"18 x pro Tag"},18,{"$f":"J25&\" x \"&Translation!$A$12","v":"18 x pro Tag"},18]
[{"$f":"B26&\" x \"&Translation!$A$11","v":"19 x pro Woche"},19,{"$f":"D26&\" x \"&Translation!$A$11","v":"19 x pro Woche"},19,{"$f":"F26&\" x \"&Translation!$A$12","v":"19 x pro Tag"},19,{"$f":"H26&\" x \"&Translation!$A$12","v":"19 x pro Tag"},19,{"$f":"J26&\" x \"&Translation!$A$12","v":"19 x pro Tag"},19]
[{"$f":"B27&\" x \"&Translation!$A$11","v":"20 x pro Woche"},20,{"$f":"D27&\" x \"&Translation!$A$11","v":"20 x pro Woche"},20,{"$f":"F27&\" x \"&Translation!$A$12","v":"20 x pro Tag"},20,{"$f":"H27&\" x \"&Translation!$A$12","v":"20 x pro Tag"},20,{"$f":"J27&\" x \"&Translation!$A$12","v":"20 x pro Tag"},20]
[{"$f":"B28&\" x \"&Translation!$A$11","v":"21 x pro Woche"},21,{"$f":"D28&\" x \"&Translation!$A$11","v":"21 x pro Woche"},21,{"$f":"F28&\" x \"&Translation!$A$12","v":"21 x pro Tag"},21,{"$f":"H28&\" x \"&Translation!$A$12","v":"21 x pro Tag"},21,{"$f":"J28&\" x \"&Translation!$A$12","v":"21 x pro Tag"},21]
[{"$f":"B29&\" x \"&Translation!$A$11","v":"22 x pro Woche"},22,{"$f":"D29&\" x \"&Translation!$A$11","v":"22 x pro Woche"},22,{"$f":"F29&\" x \"&Translation!$A$12","v":"22 x pro Tag"},22,{"$f":"H29&\" x \"&Translation!$A$12","v":"22 x pro Tag"},22,{"$f":"J29&\" x \"&Translation!$A$12","v":"22 x pro Tag"},22]
[{"$f":"B30&\" x \"&Translation!$A$11","v":"23 x pro Woche"},23,{"$f":"D30&\" x \"&Translation!$A$11","v":"23 x pro Woche"},23,{"$f":"F30&\" x \"&Translation!$A$12","v":"23 x pro Tag"},23,{"$f":"H30&\" x \"&Translation!$A$12","v":"23 x pro Tag"},23,{"$f":"J30&\" x \"&Translation!$A$12","v":"23 x pro Tag"},23]
[{"$f":"B31&\" x \"&Translation!$A$11","v":"24 x pro Woche"},24,{"$f":"D31&\" x \"&Translation!$A$11","v":"24 x pro Woche"},24,{"$f":"F31&\" x \"&Translation!$A$12","v":"24 x pro Tag"},24,{"$f":"H31&\" x \"&Translation!$A$12","v":"24 x pro Tag"},24,{"$f":"J31&\" x \"&Translation!$A$12","v":"24 x pro Tag"},24]
[{"$f":"B32&\" x \"&Translation!$A$11","v":"25 x pro Woche"},25,{"$f":"D32&\" x \"&Translation!$A$11","v":"25 x pro Woche"},25,{"$f":"F32&\" x \"&Translation!$A$12","v":"25 x pro Tag"},25,{"$f":"H32&\" x \"&Translation!$A$12","v":"25 x pro Tag"},25,{"$f":"J32&\" x \"&Translation!$A$12","v":"25 x pro Tag"},25]
[{"$f":"B33&\" x \"&Translation!$A$11","v":"26 x pro Woche"},26,{"$f":"D33&\" x \"&Translation!$A$11","v":"26 x pro Woche"},26,{"$f":"F33&\" x \"&Translation!$A$12","v":"26 x pro Tag"},26,{"$f":"H33&\" x \"&Translation!$A$12","v":"26 x pro Tag"},26,{"$f":"J33&\" x \"&Translation!$A$12","v":"26 x pro Tag"},26]
[{"$f":"B34&\" x \"&Translation!$A$11","v":"27 x pro Woche"},27,{"$f":"D34&\" x \"&Translation!$A$11","v":"27 x pro Woche"},27,{"$f":"F34&\" x \"&Translation!$A$12","v":"27 x pro Tag"},27,{"$f":"H34&\" x \"&Translation!$A$12","v":"27 x pro Tag"},27,{"$f":"J34&\" x \"&Translation!$A$12","v":"27 x pro Tag"},27]
[{"$f":"B35&\" x \"&Translation!$A$11","v":"28 x pro Woche"},28,{"$f":"D35&\" x \"&Translation!$A$11","v":"28 x pro Woche"},28,{"$f":"F35&\" x \"&Translation!$A$12","v":"28 x pro Tag"},28,{"$f":"H35&\" x \"&Translation!$A$12","v":"28 x pro Tag"},28,{"$f":"J35&\" x \"&Translation!$A$12","v":"28 x pro Tag"},28]
[{"$f":"B36&\" x \"&Translation!$A$11","v":"29 x pro Woche"},29,{"$f":"D36&\" x \"&Translation!$A$11","v":"29 x pro Woche"},29,{"$f":"F36&\" x \"&Translation!$A$12","v":"29 x pro Tag"},29,{"$f":"H36&\" x \"&Translation!$A$12","v":"29 x pro Tag"},29,{"$f":"J36&\" x \"&Translation!$A$12","v":"29 x pro Tag"},29]
[{"$f":"B37&\" x \"&Translation!$A$11","v":"30 x pro Woche"},30,{"$f":"D37&\" x \"&Translation!$A$11","v":"30 x pro Woche"},30,{"$f":"F37&\" x \"&Translation!$A$12","v":"30 x pro Tag"},30,{"$f":"H37&\" x \"&Translation!$A$12","v":"30 x pro Tag"},30,{"$f":"J37&\" x \"&Translation!$A$12","v":"30 x pro Tag"},30]
[{"$f":"B38&\" x \"&Translation!$A$11","v":"35 x pro Woche"},35,{"$f":"D38&\" x \"&Translation!$A$11","v":"35 x pro Woche"},35]
[{"$f":"B39&\" x \"&Translation!$A$11","v":"40 x pro Woche"},40,{"$f":"D39&\" x \"&Translation!$A$11","v":"40 x pro Woche"},40]
[{"$f":"B40&\" x \"&Translation!$A$11","v":"45 x pro Woche"},45,{"$f":"D40&\" x \"&Translation!$A$11","v":"45 x pro Woche"},45]
[{"$f":"B41&\" x \"&Translation!$A$11","v":"50 x pro Woche"},50,{"$f":"D41&\" x \"&Translation!$A$11","v":"50 x pro Woche"},50]
[]
[]
[]
[]
[]
[]
[]
[]
[]
[]
[]
[]
[]
[]
[]
[]
[]
[]
["Rechenwerte",null,null,null,null,null,null,"Berechnung (Wärme)-Energiebedarf"]
["Typ WP",null,"WWK 220 electronic",null,null,null,null,"Entnahmestelle",null,"Volumen",null,null,null,null,"Temperatur",null,"Energie"]
["JAZ WP",null,{"$f":"VLOOKUP($C$61,Leistungsdaten!$A:$M,2,FALSE)","v":3.96},null,null,null,null,"Typ",null,"Frequenz","Durchfluss","Dauer","Zeitraum","Zapfmenge","Kaltwasser","Zapfung","Verteilverluste","Pro Jahr"]
["Wärmeverlust WP",null,{"$f":"VLOOKUP($C$61,Leistungsdaten!$A:$M,3,FALSE)","v":0.64800000000000002},null,null,null,null,"-",null,"pro Woche","l/min","min/Zapfung","Wochen/Jahr","Liter/Jahr","°C","°C","%","kWh/a"]
["Preis WP",null,{"$f":"ROUND(VLOOKUP($C$61,Leistungsdaten!$A:$M,4,FALSE),0)","v":2350},null,null,null,null,{"$f":"Auslegung!C7","v":"Badewanne"},null,{"$f":"B5","v":2},{"$f":"Einstellungen!D29","v":10},{"$f":"Einstellungen!D31","v":12},{"$f":"Einstellungen!D10","v":49},{"$f":"J64*K64*L64*M64","v":11760},{"$f":"Einstellungen!D12","v":10},{"$f":"Einstellungen!D33","v":40},{"$f":"Einstellungen!D20","v":10},{"$f":"(1+Q64/100)*(N64*1.163*(P64-O64)/1000)","v":451.33704000000006}]
["Installation WP",null,{"$f":"VLOOKUP($C$61,Leistungsdaten!$A:$M,5,FALSE)","v":350},null,null,null,null,{"$f":"Auslegung!C9","v":"Dusche"},null,{"$f":"D5","v":15},{"$f":"Einstellungen!D38","v":8},{"$f":"Einstellungen!D40","v":6},{"$f":"M64","v":49},{"$f":"J65*K65*L65*M65","v":35280},{"$f":"O64","v":10},{"$f":"Einstellungen!D42","v":38},{"$f":"Q64","v":10},{"$f":"(1+Q65/100)*(N65*1.163*(P65-O65)/1000)","v":1263.743712}]
["PDF-DE WP",null,{"$f":"IF(VLOOKUP(C61,Leistungsdaten!A:L,12,FALSE)=0,FALSE,Translation!A3&TEXT(VLOOKUP(C61,Leistungsdaten!A:L,12,FALSE),\"000000\"))","v":"http://www.stiebel-eltron.de/services/productproxy.product.pdf?productnr=231208"},null,null,null,null,{"$f":"Auslegung!C11","v":"Badwaschbecken"},null,{"$f":"F5","v":56},{"$f":"Einstellungen!D47","v":4},{"$f":"Einstellungen!D49","v":0.5},{"$f":"M65","v":49},5488,{"$f":"O65","v":10},{"$f":"Einstellungen!D51","v":40},{"$f":"Q65","v":10},{"$f":"(1+Q66/100)*(N66*1.163*(P66-O66)/1000)","v":210.62395200000003}]
["Speichertemperatur",null,{"$f":"VLOOKUP($C$61,Leistungsdaten!$A:$N,6,FALSE)","v":55},null,null,null,null,{"$f":"Auslegung!C13","v":"Küchenspüle"},null,{"$f":"H5","v":28},{"$f":"Einstellungen!D56","v":4},{"$f":"Einstellungen!D58","v":0.5},49,2744,10,{"$f":"Einstellungen!D60","v":50},10,{"$f":"(1+Q67/100)*(N67*1.163*(P67-O67)/1000)","v":140.41596800000002}]
["Platzhalter",null,null,null,null,null,null,{"$f":"Auslegung!C15","v":"Handwaschbecken"},null,{"$f":"J5","v":21},{"$f":"Einstellungen!D65","v":2},{"$f":"Einstellungen!D67","v":0.5},49,1029,10,{"$f":"Einstellungen!D69","v":40},10,{"$f":"(1+Q68/100)*(N68*1.163*(P68-O68)/1000)","v":39.491991000000006}]
["Platzhalter"]
["Platzhalter"]
["Platzhalter"]
["Platzhalter"]
["Platzhalter"]
["Platzhalter"]
["Platzhalter"]
["Platzhalter"]
["Typ Speicher",null,"E-Speicher SHW 200 S",null,null,null,null,"Summe",null,null,{"$f":"MAX(J65*K65,J66*K66,J67*K67,J68*K68)","v":224},null,null,{"$f":"SUM(N64:N76)","v":56301},null,null,null,{"$f":"SUM(R64:R76)","v":2105.6126629999999}]
["Speicher defekt?",null,{"$f":"R5","v":true}]
["Wärmeverlust Speicher",null,{"$f":"(1-0.1*(65-C83)/5)*VLOOKUP($C$77,Leistungsdaten!$A:$M,3,FALSE)","v":1.1199999999999999}]
["Preis Speicher",null,{"$f":"IF(C78=TRUE,ROUND(VLOOKUP($C$77,Leistungsdaten!$A:$M,4,FALSE),0),0)","v":1550}]
["Installation Speicher",null,{"$f":"IF(C78=TRUE,VLOOKUP($C$77,Leistungsdaten!$A:$M,5,FALSE),0)","v":350}]
["PDF-DE Speicher",null,{"$f":"IF(VLOOKUP(C77,Leistungsdaten!A:L,12,FALSE)=0,FALSE,Translation!A3&TEXT(VLOOKUP(C77,Leistungsdaten!A:L,12,FALSE),\"000000\"))","v":"http://www.stiebel-eltron.de/services/productproxy.product.pdf?productnr=182120"}]
["Speichertemperatur",null,{"$f":"VLOOKUP($C$77,Leistungsdaten!$A:$N,6,FALSE)","v":55},null,null,null,null,"http://www.stiebel-eltron.de/services/productproxy/ste/de/de.pdf?productnr=182120"]
["Energieträger für Vergleich",null,{"$f":"VLOOKUP($C$77,Leistungsdaten!$A:$M,7,FALSE)","v":1}]
["CO2-Vergleich",null,{"$f":"IF(C84=1,Einstellungen!D14,IF(C84=2,Einstellungen!D16,Einstellungen!D18))","v":621}]
["E-Preis-Vergleich",null,{"$f":"IF(C84=1,Einstellungen!D74,IF(C84=2,Einstellungen!D76,Einstellungen!D78))","v":28}]
["Wirkungsgrad WWB Vergleich",null,{"$f":"VLOOKUP($C$77,Leistungsdaten!$A:$M,2,FALSE)","v":0.95}]
["Preissteigerung Vergleich",null,{"$f":"IF(C84=1,Einstellungen!D80,Einstellungen!D82)","v":3}]
[]
["WWK mit Solar ?",null,{"$f":"VLOOKUP($C$61,Leistungsdaten!$A:$M,7,FALSE)","v":1}]
[null,null,null,null,null,null,null,"Berechnung Endenergiebedarf",null,null,null,null,null,null,null,null,"Anzeige Ergebnisse"]
[null,null,null,null,null,null,null,"Wert",null,"Wärmepumpe",null,"Speicher",null,null,null,null,"Textbox","Energiebedarf","Energiekosten","Amortisation","Rendite","Klimadaten"]
[null,null,null,null,null,null,null,null,null,null,null,null,null,null,null,null,"Wert 1",{"$f":"Translation!$A$25&\" \"&$C$61&\": \"&FIXED(J97,0)&\" \"&Translation!$A$27","v":"Strombedarf WWK 220 electronic: 626 kWh/Jahr"},{"$f":"Translation!$A$19&\" \"&$C$61&\": \"&FIXED(J98,0)&\" \"&Translation!$A$34","v":"Energiekosten WWK 220 electronic: 175 €/Jahr"},{"$f":"Translation!A46&\" \"&C61&\": \"&Berechnung!J104& \" \"&Translation!A48","v":"Amortisation WWK 220 electronic: 1,4 Jahre"},{"$f":"Translation!A53&\": \"&FIXED(J103,1)&\" %\"","v":"Rendite des eingesetzten Kapitals: 14,0 %"}]
["Versionsnummer",null,{"$f":"RIGHT(Auslegung!AE43,5)","v":"v1.09"},null,null,null,null,"Bereitschaftsverlust",null,{"$f":"Auslegung!H24*365","v":236.52},null,{"$f":"Auslegung!H37*365","v":408.79999999999995},null,"kWh/Jahr",null,null,"Wert 2",{"$f":"Translation!$A$28&\": \"&ROUND(Berechnung!J96,0)&\" \"&Translation!$A$27&\"  |  \"&Translation!$A$29&\": \"&ROUND(Berechnung!J100,1)&\" \"&Translation!$A$32&\"  |  \"&Translation!$A$30&\": \"&ROUND(Berechnung!J99,0)&\" \"&Translation!$A$31","v":"Wärme: 2342 kWh/Jahr  |  Wasser: 56,3 m³/Jahr  |  CO2: 389 kg/Jahr"},{"$f":"Translation!$A$35&\": \"&FIXED(Berechnung!J119,0)&\" \"&Translation!$A$36&\"  |  \"&Translation!A37&\": \"&FIXED(Berechnung!L119-Berechnung!J119,0)&\" \"&Translation!A36","v":"Energiekosten in 10 Jahren: 2.011 €  |  Ersparnis in 10 Jahren: 6.485 €"},{"$f":"Translation!A50&\" \"&C61&\" \"&FIXED(J101+J102,0)&\": \"&Translation!A36 &\"  |  \"&C77&\": \"&FIXED(L101+L102,0)&\" \"&Translation!A36","v":"Einmalige Kosten WWK 220 electronic 2.700: €  |  E-Speicher SHW 200 S: 1.900 €"},{"$f":"Translation!A55&\": \"&FIXED(Berechnung!J101+Berechnung!J102,0)&\" \"&Translation!A36&\"  |  \"&Translation!A56&\": \"&FIXED(L140/10,0)&\" \"&Translation!A34","v":"Eingesetztes Kapital: 2.700 €  |  Mittlerer Ertrag: 648 €/Jahr"}]
[null,null,null,null,null,null,null,"Wärmeenergiebedarf",null,{"$f":"R77","v":2105.6126629999999},null,{"$f":"R77","v":2105.6126629999999},null,"kWh/Jahr",null,null,"Wert 3",{"$f":"IF(C84=1,Translation!A25,Translation!A67)&\" \"&$C$77&\": \"&ROUND(L97,0)&\" \"&Translation!$A$27","v":"Strombedarf E-Speicher SHW 200 S: 2647 kWh/Jahr"},{"$f":"Translation!$A$19&\" \"&$C$77&\": \"&ROUND(L98,0)&\" \"&Translation!$A$34","v":"Energiekosten E-Speicher SHW 200 S: 741 €/Jahr"},{"$f":"Translation!A49&\": \"&FIXED(Berechnung!J140,0)& \" \"&Translation!A36","v":"Ertrag mit Wärmepumpe nach 10 Jahren: 5.685 €"},{"$f":"Translation!A57&\" \"&C61&\": \"&FIXED(J106,0)&\" \"&Translation!A36","v":"Kapitalertrag WWK 220 electronic: 5.510 €"}]
[null,null,null,null,null,null,null,"Gesamtenergiebedarf",null,{"$f":"J94+J95","v":2342.1326629999999},null,{"$f":"L94+L95","v":2514.4126630000001},null,"kWh/Jahr",null,null,"Wert 4",{"$f":"Translation!$A$28&\": \"&ROUND(Berechnung!L96,0)&\" \"&Translation!$A$27&\"  |  \"&Translation!$A$29&\": \"&ROUND(Berechnung!L100,1)&\" \"&Translation!$A$32&\"  |  \"&Translation!$A$30&\": \"&ROUND(Berechnung!L99,0)&\" \"&Translation!$A$31","v":"Wärme: 2514 kWh/Jahr  |  Wasser: 56,3 m³/Jahr  |  CO2: 1644 kg/Jahr"},{"$f":"Translation!$A$35&\": \"&FIXED(Berechnung!L119,0)&\" \"&Translation!$A$36","v":"Energiekosten in 10 Jahren: 8.496 €"},null,{"$f":"Translation!A58&\": \"&FIXED(J105,0)&\" \"&Translation!A36&\"  |  \"&Translation!A52&\": \"&FIXED(L140,0)&\" \"&Translation!A36","v":"Entgangene Zinsen: 175 €  |  Energiekostenersparnis: 6.485 €"}]
[null,null,null,null,null,null,null,"Endenergiebedarf",null,{"$f":"J96*(Einstellungen!$D$22/100)+(J96*(100-Einstellungen!$D$22)/100)/Auslegung!H22+J173-J168","v":626.46134258828283},null,{"$f":"L96/C87+L173","v":2646.7501715789476},null,"kWh/Jahr",null,null,"Wert 5",null,{"$f":"Translation!$A$73&\": \"&FIXED(Einstellungen!D74,1)&\" \"&Translation!A92&\"  |  \"&Translation!A82&\": \"&Einstellungen!D80&\" \"&Translation!A84","v":"Strompreis: 28,0 Ct/kWh  |  Strompreissteigerung: 3 % pro Jahr"},{"$f":"Translation!A51&\": \"&FIXED(J129,0)&\" \"&Translation!A36&\"  |  \"&Translation!A52&\": \"&FIXED(L140,0)&\" \"&Translation!A36","v":"Mehrkosten einmalig: 800 €  |  Energiekostenersparnis: 6.485 €"},{"$f":"Translation!A60&\"  |  \"&Translation!A61&\" \"&FIXED(Einstellungen!D24,1)&\" \"&Translation!A84","v":"Betrachtungszeitraum 10 Jahre  |  Bank-Guthabenzinssatz 2,0 % pro Jahr"}]
[null,null,null,null,null,null,null,"Stromkosten",null,{"$f":"J97*Einstellungen!$D$74/100-J175","v":175.40917592471919},null,{"$f":"(L96/C87)*C86/100+L174","v":741.09004804210531},null,"€/Jahr",null,null,"Wert 6"]
[null,null,null,null,null,null,null,"CO2-Emission",null,{"$f":"(J97+J173-J172-J171)*Einstellungen!$D$14/1000","v":389.03249374732366},null,{"$f":"(L96/C87)*C85/1000+L173*Einstellungen!$D$14/1000","v":1643.6318565505267},null,"kg CO2 / Jahr",null,null,"Wert 7"]
[null,null,null,null,null,null,null,"Wasserverbrauch",null,{"$f":"N77/1000","v":56.301000000000002},null,{"$f":"N77/1000","v":56.301000000000002},null,"m³/Jahr",null,null,"Wert 8"]
[null,null,null,null,null,null,null,"Investitionskosten",null,{"$f":"Auslegung!H26","v":2350},null,{"$f":"Auslegung!H39","v":1550},null,"€",null,null,"Wert 9"]
[null,null,null,null,null,null,null,"Installationskosten",null,{"$f":"Auslegung!H28","v":350},null,{"$f":"Auslegung!H41","v":350},null,"€",null,null,"Wert 10"]
[null,null,null,null,null,null,null,"Verzinsung",null,{"$f":"100*(L140-(J101+J102))/(J101+J102)/10","v":14.0181379509675},null,null,null,"% pro Jahr",null,null,"Legende 1",{"$f":"$C$61","v":"WWK 220 electronic"},{"$f":"$C$61","v":"WWK 220 electronic"},{"$f":"Translation!A46","v":"Amortisation"},{"$f":"C61","v":"WWK 220 electronic"}]
[null,null,null,null,null,null,null,"Amortisation",null,{"$f":"IF(ISERROR(-1*L144/J144),\"> 10\",FIXED(-1*L144/J144,1))","v":"1,4"},null,null,null,"Jahre",null,null,"Legende 2",{"$f":"$C$77","v":"E-Speicher SHW 200 S"},{"$f":"$C$77","v":"E-Speicher SHW 200 S"},null,{"$f":"Translation!A63","v":"Geldanlage Bank"}]
[null,null,null,null,null,null,null,"Zinsen auf der Bank",null,{"$f":"J129*(1+Einstellungen!$D$24/100)^10-J129","v":175.1955359958057},null,null,null,"€ in 10 Jahren",null,null,"Legende 3"]
[null,null,null,null,null,null,null,"Kapitaltalertrag 10 Jahre",null,{"$f":"L161-J161","v":5509.7017107654192},null,null,null,"€",null,null,"Legende 4"]
[null,null,null,null,null,null,null,null,null,null,null,null,null,null,null,null,"Legende 5"]
[null,null,null,null,null,null,null,"Energiekostenentwicklung",null,null,null,null,null,null,null,null,"Legende 6"]
[null,null,null,null,null,null,null,1,null,{"$f":"J98","v":175.40917592471919},null,{"$f":"L98","v":741.09004804210531},null,null,null,null,"Legende 7"]
[null,null,null,null,null,null,null,2,null,{"$f":"J109*(1+Einstellungen!$D$80/100)","v":180.67145120246079},null,{"$f":"L109*(1+$C$88/100)","v":763.32274948336851},null,null,null,null,"Legende 8"]
[null,null,null,null,null,null,null,3,null,{"$f":"J110*(1+Einstellungen!$D$80/100)","v":186.09159473853461},null,{"$f":"L110*(1+$C$88/100)","v":786.22243196786962},null,null,null,null,"Legende 9"]
[null,null,null,null,null,null,null,4,null,{"$f":"J111*(1+Einstellungen!$D$80/100)","v":191.67434258069065},null,809.80910492690577,null,null,null,null,"Legende 10"]
[null,null,null,null,null,null,null,5,null,{"$f":"J112*(1+Einstellungen!$D$80/100)","v":197.42457285811136},null,834.10337807471296,null,null,null,null,"Legende 11"]
[null,null,null,null,null,null,null,6,null,{"$f":"J113*(1+Einstellungen!$D$80/100)","v":203.34731004385472},null,859.12647941695434,null,null,null,null,"Legende 12"]
[null,null,null,null,null,null,null,7,null,{"$f":"J114*(1+Einstellungen!$D$80/100)","v":209.44772934517036},null,884.90027379946298,null,null,null,null,"Legende 13"]
[null,null,null,null,null,null,null,8,null,{"$f":"J115*(1+Einstellungen!$D$80/100)","v":215.73116122552548},null,911.44728201344685,null,null,null,null,"Legende 14"]
[null,null,null,null,null,null,null,9,null,{"$f":"J116*(1+Einstellungen!$D$80/100)","v":222.20309606229125},null,938.79070047385028,null,null,null,null,"Legende 15"]
[null,null,null,null,null,null,null,10,null,{"$f":"J117*(1+Einstellungen!$D$80/100)","v":228.86918894415999},null,966.9544214880658]
[null,null,null,null,null,null,null,"Summe 10 Jahre",null,{"$f":"SUM(J109:K118)","v":2010.8696229255183},null,{"$f":"SUM(L109:M118)","v":8495.7668696867422}]
[]
[]
[]
[]
[]
[]
[]
[]
[null,null,null,null,null,null,null,"Amortisation",null,"Offenener Betrag",null,"Einsparung",null,"Amortisation ?"]
[null,null,null,null,null,null,null,0,null,{"$f":"IF(C78=TRUE,((J101+J102)-(L101+L102)),J101+J102)","v":800},null,0,null,0]
[null,null,null,null,null,null,null,1,null,{"$f":"J129-L130","v":234.31912788261388},null,{"$f":"L109-J109","v":565.68087211738612},null,{"$f":"IF(AND(J129>0,J130<=0),H130,0)","v":0}]
[null,null,null,null,null,null,null,2,null,{"$f":"J130-L131","v":-348.33217039829378},null,{"$f":"L110-J110","v":582.65129828090767},null,{"$f":"IF(AND(J130>0,J131<=0),H131,0)","v":2}]
[null,null,null,null,null,null,null,3,null,{"$f":"J131-L132","v":-948.46300762762883},null,600.13083722933504,null,0]
[null,null,null,null,null,null,null,4,null,-1566.5977699738439,null,618.1347623462151,null,0]
[null,null,null,null,null,null,null,5,null,-2203.2765751904453,null,636.67880521660163,null,0]
[null,null,null,null,null,null,null,6,null,-2859.055744563545,null,{"$f":"L114-J114","v":655.77916937309965},null,0]
[null,null,null,null,null,null,null,7,null,{"$f":"J135-L136","v":-3534.5082890178373},null,675.45254445429259,null,0]
[null,null,null,null,null,null,null,8,null,-4230.224409805759,null,695.71612078792134,null,0]
[null,null,null,null,null,null,null,9,null,-4946.8120142173184,null,716.58760441155903,null,0]
[null,null,null,null,null,null,null,10,null,-5684.8972467612239,null,738.08523254390582,null,0]
[null,null,null,null,null,null,null,"Summe",null,{"$f":"-1*J139","v":5684.8972467612239},null,{"$f":"SUM(L129:M139)","v":6484.8972467612248},null,{"$f":"MAX(N129:N139)","v":2}]
[]
[]
[null,null,null,null,null,null,null,"Nebenrechnung",null,"m",null,"n"]
[null,null,null,null,null,null,null,"(Nullpunktberechnung Amortisation)",null,{"$f":"VLOOKUP(N140,H129:K144,3,FALSE)-VLOOKUP(N140-1,H129:K144,3,FALSE)","v":-582.65129828090767},null,{"$f":"VLOOKUP(N140,H129:K144,3,FALSE)-J144*N140","v":816.97042616352155}]
[]
[]
[]
[]
[]
[null,null,null,null,null,null,null,"Kapitalentwicklung",null,"Bank",null,"Wärmepumpe"]
[null,null,null,null,null,null,null,0,null,{"$f":"J129","v":800},null,0]
[null,null,null,null,null,null,null,1,null,{"$f":"J151+J151*Einstellungen!$D$24/100","v":816},null,{"$f":"L151+L130","v":565.68087211738612}]
[null,null,null,null,null,null,null,2,null,{"$f":"J152+J152*Einstellungen!$D$24/100","v":832.32},null,{"$f":"L152+L131","v":1148.3321703982938}]
[null,null,null,null,null,null,null,3,null,{"$f":"J153+J153*Einstellungen!$D$24/100","v":848.96640000000002},null,{"$f":"L153+L132","v":1748.4630076276289}]
[null,null,null,null,null,null,null,4,null,{"$f":"J154+J154*Einstellungen!$D$24/100","v":865.94572800000003},null,2366.5977699738442]
[null,null,null,null,null,null,null,5,null,{"$f":"J155+J155*Einstellungen!$D$24/100","v":883.26464256000008},null,3003.2765751904458]
[null,null,null,null,null,null,null,6,null,{"$f":"J156+J156*Einstellungen!$D$24/100","v":900.92993541120006},null,3659.0557445635454]
[null,null,null,null,null,null,null,7,null,{"$f":"J157+J157*Einstellungen!$D$24/100","v":918.94853411942404},null,4334.5082890178383]
[null,null,null,null,null,null,null,8,null,{"$f":"J158+J158*Einstellungen!$D$24/100","v":937.32750480181255},null,5030.2244098057599]
[null,null,null,null,null,null,null,9,null,{"$f":"J159+J159*Einstellungen!$D$24/100","v":956.07405489784878},null,5746.8120142173193]
[null,null,null,null,null,null,null,10,null,{"$f":"J160+J160*Einstellungen!$D$24/100","v":975.19553599580581},null,6484.8972467612248]
[]
[]
[null,null,null,null,null,null,null,"PV-Strom"]
[]
[null,null,null,null,null,null,null,"Mit PV rechnen ?",null,{"$f":"IF(C90=4,TRUE,FALSE)","v":false},null,{"$f":"J166","v":false}]
[null,null,null,null,null,null,null,"Solarertrag",null,{"$f":"VLOOKUP(C61,Leistungsdaten!A:H,8,FALSE)*Einstellungen!D87","v":0},null,0,null,"kWh/Jahr"]
[null,null,null,null,null,null,null,"Eigenverbrauch",null,{"$f":"Einstellungen!$D$89/100*J167","v":0},null,0,null,"kWh/Jahr"]
[null,null,null,null,null,null,null,"Einspeisung",null,{"$f":"J167-J168","v":0},null,0,null,"kWh/Jahr"]
[null,null,null,null,null,null,null,"Anteil WWK am Eigenverbrauch",null,0.33,null,0,null,"Eingabe"]
[null,null,null,null,null,null,null,"Eigenverbrauch WWK",null,{"$f":"J170*J168","v":0},null,0,null,"kWh/Jahr"]
[null,null,null,null,null,null,null,"Eigenverbrauch Haushalt",null,{"$f":"J168-J171","v":0},null,0,null,"kWh/Jahr"]
[null,null,null,null,null,null,null,"Haushaltstrom",null,{"$f":"IF(J166=FALSE,0,Einstellungen!D91)","v":0},null,{"$f":"J173","v":0},null,"kWh/Jahr"]
[null,null,null,null,null,null,null,"Stromkosten Haushalt",null,{"$f":"IF(J166=FALSE,0,MAX(0,(J173-J172)*Einstellungen!$D$74/100))","v":0},null,{"$f":"IF(L166=FALSE,0,L173*Einstellungen!$D$74/100)","v":0},null,"€/Jahr"]
[null,null,null,null,null,null,null,"Einspeisevergütung",null,{"$f":"IF(J166=FALSE,0,J169*Einstellungen!$D$93/100)","v":0},null,0,null,"€/Jahr"]
[null,null,null,null,null,null,null,"Eigenverbrauch WWK",null,{"$f":"IF(J166=FALSE,0,J171*Einstellungen!$D$93/100)","v":0},null,0,null,"€/Jahr"]

{"sheet":"Leistungsdaten","index":4,"n_rows":63,"n_cols":31,"rows_kept":63,"cut":false,"hidden":true,"merged":[]}
[null,null,null,null,null,null,null,null,null,null,null,null,null,"Gerät anzeigen?"]
["WP-Typ","JAZ","Wärmeverlust","Preis (netto)","Installation","Speichertemp","E-Träger","Kwpeak",null,"Nr. STE","Nr. TEC","Nr. gewählt",null,"Deutsch","English  Int","English UK","Holländisch","Französisch","Slovakisch","tecalor","Platzhalter","Platzhalter","Platzhalter","Platzhalter","Platzhalter","Platzhalter","Platzhalter","Platzhalter","Platzhalter","Name STE","Name Tec"]
[{"$f":"IF(Berechnung!$K$5=7,AE3,AD3)","v":"WWK 220 electronic"},3.96,0.64800000000000002,2350,350,55,1,0,null,231208,190385,{"$f":"IF(Berechnung!$K$5=7,K3,J3)","v":231208},null,true,true,false,true,true,true,true,true,true,true,true,true,true,true,true,true,"WWK 220 electronic","TTA 220 electronic"]
[{"$f":"IF(Berechnung!$K$5=7,AE4,AD4)","v":"WWK 300 electronic"},3.86,0.67200000000000004,2450,350,55,1,0,null,231210,190386,{"$f":"IF(Berechnung!$K$5=7,K4,J4)","v":231210},null,true,true,false,true,true,true,true,true,true,true,true,true,true,true,true,true,"WWK 300 electronic","TTA 300 electronic"]
[{"$f":"IF(Berechnung!$K$5=7,AE5,AD5)","v":"WWK 300 electronic SOL"},3.92,0.76800000000000002,2550,350,55,1,0,null,233583,190387,{"$f":"IF(Berechnung!$K$5=7,K5,J5)","v":233583},null,true,true,false,true,true,true,true,true,true,true,true,true,true,true,true,true,"WWK 300 electronic SOL","TTA 300 electronic SOL"]
[{"$f":"IF(Berechnung!$K$5=7,AE6,AD6)","v":"WWK 221 electronic"},3.79,0.504,2650,350,55,1,0,null,230949,190455,{"$f":"IF(Berechnung!$K$5=7,K6,J6)","v":230949},null,true,true,false,true,true,true,true,true,true,true,true,true,true,true,true,true,"WWK 221 electronic","TTA 221 electronic"]
[{"$f":"IF(Berechnung!$K$5=7,AE7,AD7)","v":"WWK 301 electronic"},3.64,0.55200000000000005,2750,350,55,1,0,null,230950,190456,{"$f":"IF(Berechnung!$K$5=7,K7,J7)","v":230950},null,true,true,false,true,true,true,true,true,true,true,true,true,true,true,true,true,"WWK 301 electronic","TTA 301 electronic"]
[{"$f":"IF(Berechnung!$K$5=7,AE8,AD8)","v":"WWK 301 electronic SOL"},3.67,0.64800000000000002,2850,350,55,1,0,null,233584,190457,{"$f":"IF(Berechnung!$K$5=7,K8,J8)","v":233584},null,true,true,false,true,true,true,true,true,true,true,true,true,true,true,true,true,"WWK 301 electronic SOL","TTA 301 electronic SOL"]
[{"$f":"IF(Berechnung!$K$5=7,AE9,AD9)","v":"WWS 20"},3.85,2.4,3600,350,55,1,0,null,233898,null,{"$f":"IF(Berechnung!$K$5=7,K9,J9)","v":233898},null,true,true,false,true,true,true,false,true,true,true,true,true,true,true,true,true,"WWS 20","WWS 20"]
[{"$f":"IF(Berechnung!$K$5=7,AE10,AD10)","v":"WWK 300 A"},3.19,1.24,2850,350,55,1,0,null,222422,null,{"$f":"IF(Berechnung!$K$5=7,K10,J10)","v":222422},null,false,true,true,false,false,false,false,true,true,true,true,true,true,true,true,true,"WWK 300 A","TTA 300 A"]
[{"$f":"IF(Berechnung!$K$5=7,AE11,AD11)","v":"WWK 300 AP"},3.19,1.24,2850,350,55,1,0,null,222422,null,{"$f":"IF(Berechnung!$K$5=7,K11,J11)","v":222422},null,false,true,false,false,false,false,false,true,true,true,true,true,true,true,true,true,"WWK 300 AP","TTA 300 AP"]
[{"$f":"IF(Berechnung!$K$5=7,AE12,AD12)","v":"WWK 300 AH"},3.19,1.24,3000,350,55,1,0,null,227070,null,{"$f":"IF(Berechnung!$K$5=7,K12,J12)","v":227070},null,false,true,true,false,false,false,false,true,true,true,true,true,true,true,true,true,"WWK 300 AH","TTA 300 AH"]
[{"$f":"IF(Berechnung!$K$5=7,AE13,AD13)","v":"WWK 300 AHP"},3.19,1.24,3000,350,55,1,0,null,227070,null,{"$f":"IF(Berechnung!$K$5=7,K13,J13)","v":227070},null,false,true,false,false,false,false,false,true,true,true,true,true,true,true,true,true,"WWK 300 AHP","TTA 300 AHP"]
[{"$f":"IF(Berechnung!$K$5=7,AE14,AD14)","v":"WWK 300 GP"},3.19,1.25,2700,350,55,1,0,null,227072,null,{"$f":"IF(Berechnung!$K$5=7,K14,J14)","v":227072},null,false,true,false,false,false,false,false,true,true,true,true,true,true,true,true,true,"WWK 300 GP","TTA 300 GP"]
[{"$f":"IF(Berechnung!$K$5=7,AE15,AD15)","v":"TEGREON 1201 WWK"},4.0999999999999996,0.96,7950,2000,55,4,3.06,null,273310,null,{"$f":"IF(Berechnung!$K$5=7,K15,J15)","v":273310},null,true,true,false,false,false,true,false,true,true,true,true,true,true,true,true,true,"TEGREON 1201 WWK","TEGREON 1201 TTA"]
[{"$f":"IF(Berechnung!$K$5=7,AE16,AD16)","v":"TEGREON 1202 WWK"},4.0999999999999996,0.96,8050,2000,55,4,3.06,null,273311,null,{"$f":"IF(Berechnung!$K$5=7,K16,J16)","v":273311},null,true,true,false,false,false,true,false,true,true,true,true,true,true,true,true,true,"TEGREON 1202 WWK","TEGREON 1202 TTA"]
[{"$f":"IF(Berechnung!$K$5=7,AE17,AD17)","v":"TEGREON 1601 WWK"},4.0999999999999996,0.96,9500,2000,55,4,4.08,null,273312,null,{"$f":"IF(Berechnung!$K$5=7,K17,J17)","v":273312},null,true,true,false,false,false,true,false,true,true,true,true,true,true,true,true,true,"TEGREON 1601 WWK","TEGREON 1601 TTA"]
[{"$f":"IF(Berechnung!$K$5=7,AE18,AD18)","v":"TEGREON 1602 WWK"},4.0999999999999996,0.96,9600,2000,55,4,4.08,null,273313,null,{"$f":"IF(Berechnung!$K$5=7,K18,J18)","v":273313},null,true,true,false,false,false,true,false,true,true,true,true,true,true,true,true,true,"TEGREON 1602 WWK","TEGREON 1602 TTA"]
[{"$f":"IF(Berechnung!$K$5=7,AE19,AD19)","v":"TEGREON 2001 WWK"},4.0999999999999996,0.96,11200,2000,55,4,5.0999999999999996,null,273314,null,{"$f":"IF(Berechnung!$K$5=7,K19,J19)","v":273314},null,true,true,false,false,false,true,false,true,true,true,true,true,true,true,true,true,"TEGREON 2001 WWK","TEGREON 2001 TTA"]
[{"$f":"IF(Berechnung!$K$5=7,AE20,AD20)","v":"TEGREON 2002 WWK"},4.0999999999999996,0.96,11300,2000,55,4,5.0999999999999996,null,273315,null,{"$f":"IF(Berechnung!$K$5=7,K20,J20)","v":273315},null,true,true,false,false,false,true,false,true,true,true,true,true,true,true,true,true,"TEGREON 2002 WWK","TEGREON 2002 TTA"]
[]
[]
[]
[]
[]
[]
[]
[]
[]
[]
[]
[]
[]
[]
[]
[]
[]
[]
[]
[]
[]
[]
[]
[]
[]
[]
[]
[]
["Vergleichssystem","Wirkungsgrad","Wärmeverlust","Preis (netto)","Installation","Speichertemp",null,"Kwpeak",null,"Nr. STE","Nr. TEC","Nr. gewählt"]
[{"$f":"Translation!$A$66&\" \"&\"SHW 200 S\"","v":"E-Speicher SHW 200 S"},0.95,1.4,1550,350,55,1,0,null,182120,null,{"$f":"IF(Berechnung!$K$5=7,K50,J50)","v":182120}]
[{"$f":"Translation!$A$66&\" \"&\"SHW 300 S\"","v":"E-Speicher SHW 300 S"},0.95,1.8,1700,350,55,1,0,null,182121,null,{"$f":"IF(Berechnung!$K$5=7,K51,J51)","v":182121}]
[{"$f":"Translation!$A$66&\" \"&\"SHW 400 S\"","v":"E-Speicher SHW 400 S"},0.95,2.1,2100,350,55,1,0,null,182122,null,{"$f":"IF(Berechnung!$K$5=7,K52,J52)","v":182122}]
[{"$f":"Translation!$A$66&\" \"&\"HSTP 200\"","v":"E-Speicher HSTP 200"},0.95,1.9,1350,350,55,1,0,null,71264,null,{"$f":"IF(Berechnung!$K$5=7,K53,J53)","v":71264}]
[{"$f":"Translation!$A$66&\" \"&\"HSTP 300\"","v":"E-Speicher HSTP 300"},0.95,2.2999999999999998,1500,350,55,1,0,null,71267,null,{"$f":"IF(Berechnung!$K$5=7,K54,J54)","v":71267}]
[{"$f":"Translation!$A$66&\" \"&\"HSTP 400\"","v":"E-Speicher HSTP 400"},0.95,2.6,1800,350,55,1,0,null,71270,null,{"$f":"IF(Berechnung!$K$5=7,K55,J55)","v":71270}]
[{"$f":"Translation!$A$66&\" \"&\"50 L\"","v":"E-Speicher 50 L"},0.95,1.5,800,350,55,1,0]
[{"$f":"Translation!$A$66&\" \"&\"100 L\"","v":"E-Speicher 100 L"},0.95,1.6,1000,350,55,1,0]
[{"$f":"Translation!$A$66&\" \"&\"150 L\"","v":"E-Speicher 150 L"},0.95,1.8,1200,350,55,1,0]
[{"$f":"Translation!$A$66&\" \"&\"200 L\"","v":"E-Speicher 200 L"},0.95,2,1300,350,55,1,0]
[{"$f":"Translation!$A$66&\" \"&\"250 L\"","v":"E-Speicher 250 L"},0.95,2.2999999999999998,1400,350,55,1,0]
[{"$f":"Translation!$A$66&\" \"&\"300 L\"","v":"E-Speicher 300 L"},0.95,2.5,1500,350,55,1,0]
[{"$f":"Translation!A64","v":"Ölkessel + Speicher"},0.85,2,1000,350,75,2,0]
[{"$f":"Translation!A65","v":"Gaskessel + Speicher"},0.85,2,1000,350,75,3,0]

{"sheet":"Translation","index":5,"n_rows":125,"n_cols":8,"rows_kept":125,"cut":false,"hidden":true,"merged":[]}
[">>> Bei neuer Sprache im Blatt Leistungsdaten die WWKs wählen, die für die Sprache angezeigt werden sollen",">>> Bei neuer Sprache im Blatt Leistungsdaten die WWKs wählen, die für die Sprache angezeigt werden sollen",null,null,null,null,null,">>> Bei neuer Sprache im Blatt Leistungsdaten die WWKs wählen, die für die Sprache angezeigt werden sollen"]
["Deutsch","Deutsch","English  International","English UK","Holländisch","Französisch","Slovakisch","Tecalor"]
["http://www.stiebel-eltron.de/services/productproxy.product.pdf?productnr=","http://www.stiebel-eltron.de/services/productproxy.product.pdf?productnr=","http://www.stiebel-eltron.com/services/productproxy.product.pdf?productnr=","http://www.stiebel-eltron.co.uk/services/productproxy.product.pdf?productnr=","http://www.stiebel-eltron.nl/services/productproxy.product.pdf?productnr=","http://www.stiebel-eltron.fr/services/productproxy.product.pdf?productnr=","http://www.stiebel-eltron.sk/services/productproxy.product.pdf?productnr=","http://www.tecalor.de/services/productproxy.product.pdf?productnr="]
["WWK-Renditerechner","WWK-Renditerechner","WWK vs Hot water cylinders","WWK vs Hot water cylinders","WWK vs. staande boiler","WWK vs. chauffe-eau sur socle","Výpočet rendity WWK","TTA-Renditerechner"]
["Bitte wählen Sie Entnahmestellen und Nutzungshäufigkeit","Bitte wählen Sie Entnahmestellen und Nutzungshäufigkeit","Please select your draw-off point and frequency of use.","Please select your draw-off point and frequency of use.","Geef aub voor alle aftappunten het verbruik in","Introduisez la consommation pour chaque point de soutirage","Prosím zvoľte odberné miesta a frekvenciu užívania","Bitte wählen Sie Entnahmestellen und Nutzungshäufigkeit"]
["Badewanne","Badewanne","Bath tub","Bath tub","Badkuip","Baignoire","Vaňa","Badewanne"]
["Dusche","Dusche","Shower","Shower","Douche","Douche","Sprcha","Dusche"]
["Badwaschbecken","Badwaschbecken","Basin","Basin","Wastafel badkamer","Évier salle de bains","Umývadlo","Badwaschbecken"]
["Küchenspüle","Küchenspüle","Kitchen sink","Kitchen sink","Spoeltafel keuken","Évier cuisine","Kuchynská výlevka","Küchenspüle"]
["Handwaschbecken","Handwaschbecken","Handwash sink","Handwash sink","Handwastafel","Lavabo","Umývadlo na ruky","Handwaschbecken"]
["pro Woche","pro Woche","per week","per week","per week","par semaine","Za týždeň","pro Woche"]
["pro Tag","pro Tag","per day","per day","per dag","par jour","Za deň","pro Tag"]
["Keine Badewanne","Keine Badewanne","No bath tub","No bath tub","Geen badkuip","Pas de baignoire","Bez vane","Keine Badewanne"]
["Keine Dusche","Keine Dusche","No shower","No shower","Geen douche","Pas de douche","Bez sprchy","Keine Dusche"]
["Kein Waschbecken","Kein Waschbecken","No basin","No basin","Geen wastafel","Pas d'évier","Bez umývadla","Kein Waschbecken"]
["Keine Küchenspüle","Keine Küchenspüle","No kitchen sink","No kitchen sink","Geen spoeltafel","Pas d'évier de cuisine","Bez kuchynskej výlevky","Keine Küchenspüle"]
["Kein Waschbecken","Kein Waschbecken","No handw. sink","No handw. sink","Geen wastafel","Pas d'évier","Bez umývadla","Kein Waschbecken"]
["Energiebedarf","Energiebedarf","Energy demand","Energy demand","Energieverbruik","Consommation énergétique","Spotreba energie","Energiebedarf"]
["Energiekosten","Energiekosten","Energy costs","Energy costs","Energiekosten","Coûts énergétiques","Náklady na energiu","Energiekosten"]
["Bitte wählen Sie die Warmwasser-Wärmepumpe","Bitte wählen Sie die Warmwasser-Wärmepumpe","Please select the DHW heat pump","Please select the DHW heat pump","Kies aub een warmtepompboiler","Choisissez un chauffe-eau thermodynamique svp","Prosím zvoľte tepelné čerpadlo pre ohrev vody","Bitte wählen Sie die Warmwasser-Wärmepumpe"]
["Wie erzeugen Sie aktuell Ihr Warmwasser ?","Wie erzeugen Sie aktuell Ihr Warmwasser ?","How do you actually generate your hot water?","How do you actually generate your hot water?","Hoe bereidt u nu uw warm water?","Comment préparez-vous votre eau chaude pour l'instant ?","Ako získavate v súčasnosti teplú vodu? ","Wie erzeugen Sie aktuell Ihr Warmwasser ?"]
["Speicher defekt ?","Speicher defekt ?","DHW cylinder is broken?","DHW cylinder is broken?","Boiler defect?","Chauffe-eau défectueux ?","Pokazený ohrievač vody?","Speicher defekt ?"]
["Austausch ist erforderlich","Austausch ist erforderlich","Replacement is required","Replacement is required","Vervanging is noodzakelijk","Remplacement nécessaire","Nutná výmena","Austausch ist erforderlich"]
["Austausch nicht erforderlich","Austausch nicht erforderlich","Replacement is not required","Replacement is not required","Vervanging is niet noodzakelijk","Remplacement pas nécessaire","Výmena nie je nutná","Austausch nicht erforderlich"]
["Strombedarf","Strombedarf","Electricity requirement","Electricity requirement","Stroomverbruik","Consommation énergétique","Spotreba elektriny","Strombedarf"]
["Strombedarf [kWh/Jahr]","Strombedarf [kWh/Jahr]","Electricity requirement [kWh/year]","Electricity requirement [kWh/year]","Stroomverbruik [kWh/jaar]","Consommation énergétique (kWh/an)","Spotreba elektriny [kWh/rok]","Strombedarf [kWh/Jahr]"]
["kWh/Jahr","kWh/Jahr","kWh/year","kWh/year","kWh/jaar","kWh/an","kWh/rok","kWh/Jahr"]
["Wärme","Wärme","Heat","Heat","Warmte","Chaleur","Teplo","Wärme"]
["Wasser","Wasser","Water","Water","Water","Eau","Voda","Wasser"]
["CO2","CO2","CO2","CO2","CO2","CO2","CO2","CO2"]
["kg/Jahr","kg/Jahr","kg/year","kg/year","kg/jaar","kg/an","kg/rok","kg/Jahr"]
["m³/Jahr","m³/Jahr","m³/year","m³/year","m³/jaar","m²/an","m³/ rok","m³/Jahr"]
["Energiekosten [€/a]","Energiekosten [€/a]","Energy costs [€/a]","Energy costs [£/a]","Energiekosten [€/jaar]","Coûts énergétiques [€/an]","Náklady na energiu [€/a]","Energiekosten [€/a]"]
["€/Jahr","€/Jahr","€/year","£/year","€/jaar","€/an","€/rok","€/Jahr"]
["Energiekosten in 10 Jahren","Energiekosten in 10 Jahren","Energy costs in 10 Years","Energy costs in 10 Years","Energiekosten op 10 jaar","Coûts énergétiques sur 10 ans","Náklady na energiu za 10 rokov","Energiekosten in 10 Jahren"]
["€","€","€","£","€","€","€","€"]
["Ersparnis in 10 Jahren","Ersparnis in 10 Jahren","Savings resulting in 10 Years","Savings resulting in 10 Years","Besparing op 10 jaar","Économie sur 10 ans","Úspora za 10 rokov","Ersparnis in 10 Jahren"]
["Einsatz des Berechnungstools ausschließlich zur Bestimmung der Wirtschaftlichkeit von Warmwasser-Wärmepumpen. Es ersetzt nicht die Auslegung der erforderlichen Speichergröße von Wärmepumpe und Standspeicher.","Einsatz des Berechnungstools ausschließlich zur Bestimmung der Wirtschaftlichkeit von Warmwasser-Wärmepumpen. Es ersetzt nicht die Auslegung der erforderlichen Speichergröße von Wärmepumpe und Standspeicher.","The use of the calculation tool is exclusiv for determining the economy of DHW heat pumps. It does not replace the design of the required size of heat pump and hot water cylinders.","The use of the calculation tool is exclusiv for determining the economy of DHW heat pumps. It does not replace the design of the required size of heat pump and hot water cylinders.","Deze tool berekent uitsluitend de rentabiliteit van warmtepompboilers. Hij geeft geen indicatie over de nodige grootte van de warmtepomp en boiler.","Cet outil calcule uniquement la rentabilité des chauffe-eaux thermodynamiques. Il ne donne aucune indication sur la capacité nécessaire de la pompe à chaleur et du chauffe-eau.","Využitie pomôcok na prepočet výlučne pre určenie hospodárnosti tepelných čerpadiel pre ohrev vody. Nenahrádzaprojekčný návrh požadovanej veľkosti ohrievača tepelného čerpadla a stacionárneho ohrievača","Einsatz des Berechnungstools ausschließlich zur Bestimmung der Wirtschaftlichkeit von Warmwasser-Wärmepumpen. Es ersetzt nicht die Auslegung der erforderlichen Speichergröße von Wärmepumpe und Standspeicher."]
["Jahr","Jahr","Year","Year","Jaar","An","Rok","Jahr"]
["Typ Wärmepumpe","Typ Wärmepumpe","Type of heat pump","Type of heat pump","Type warmtepomp","Type de pompe à chaleur","Typ tepelného čerpadla","Typ Wärmepumpe"]
["Jahresarbeitszahl","Jahresarbeitszahl","Yearly COP","Yearly COP","SPF (jaarlijks rendement)","SPF (rendement annuel)","Ročné výkonové číslo (COP)","Jahresarbeitszahl"]
["Wärmeverluste [kWh/Tag]","Wärmeverluste [kWh/Tag]","Heat losses [kWh/day]","Heat losses [kWh/day]","Warmteverliezen [kWh/dag]","Déperditions calorifiques","Tepelné straty [kWh/deň] ","Wärmeverluste [kWh/Tag]"]
["Investitionskosten [€]","Investitionskosten [€]","Investment costs [€]","Investment costs [£]","Investeringskost [€]","Prix [€]","Investičné náklady [€]","Investitionskosten [€]"]
["Installationskosten [€]","Installationskosten [€]","Installation costs [€]","Installation costs [£]","Installatiekost [€]","Installation [€]","Montážne náklady [€]","Installationskosten [€]"]
["Wärmeerzeuger","Wärmeerzeuger","Heat generator","Heat generator","Warmteopwekker","Source de chaleur","Tepelný generátor","Wärmeerzeuger"]
["Amortisation","Amortisation","Amortization","Amortization","Terugverdientijd","Amortissement","Amortizácia","Amortisation"]
["Amortisation [€]","Amortisation [€]","Amortization [€]","Amortization [£]","Terugverdientijd [€]","Amortissement [€]","Amortizácia [€]","Amortisation [€]"]
["Jahre","Jahre","Years","Years","jaren","années","Roky","Jahre"]
["Ertrag mit Wärmepumpe nach 10 Jahren","Ertrag mit Wärmepumpe nach 10 Jahren","Yield with heat pump in 10 years","Yield with heat pump in 10 years","Opbrengst met warmtepomp na 10 jaar","Bénéfice avec une pompe à chaleur après 10 ans","Výnos s tepelným čerpadlom po 10 rokoch","Ertrag mit Wärmepumpe nach 10 Jahren"]
["Einmalige Kosten","Einmalige Kosten","One-off costs","One-off costs","Eenmalige kosten","Coût unique","Jednorazové náklady","Einmalige Kosten"]
["Mehrkosten einmalig","Mehrkosten einmalig","Repeated costs","Repeated costs","Eenmalige meerkost","Surcoût unique","Náklady jednorazovo","Mehrkosten einmalig"]
["Energiekostenersparnis","Energiekostenersparnis","Energy cost savings","Energy cost savings","Energiekostenbesparing","Réduction des coûts énergétiques","Úspora nákladov na energiu","Energiekostenersparnis"]
["Rendite des eingesetzten Kapitals","Rendite des eingesetzten Kapitals","Return on capital employed","Return on capital employed","Rendement van het ingebracht kapitaal","Rendement du capital injecté","Rendita vloženého kapitálu","Rendite des eingesetzten Kapitals"]
["Rendite","Rendite","Return on capital","Return on capital","Rendement","Rendement","Rendita","Rendite"]
["Eingesetztes Kapital","Eingesetztes Kapital","Invested capital","Invested capital","Ingebracht kapitaal","Capital injecté","Vložený kapitál","Eingesetztes Kapital"]
["Mittlerer Ertrag","Mittlerer Ertrag","Medium income","Medium income","Gemiddelde opbrengst","Bénéfice moyen","Priemerný výnos","Mittlerer Ertrag"]
["Kapitalertrag","Kapitalertrag","Capital gains","Capital gains","Kapitaalopbrengst","Revenu du capital","Kapitálový výnos","Kapitalertrag"]
["Entgangene Zinsen","Entgangene Zinsen","Miss interest rates","Miss interest rates","Verloren intresten","Intérêts perdus","Ušlý úrok","Entgangene Zinsen"]
["€ in 10 Jahren","€ in 10 Jahren","€ in 10 years","£ in 10 years","€ op 10 jaar","€ sur 10 ans","€ za 10 rokov","€ in 10 Jahren"]
["Betrachtungszeitraum 10 Jahre","Betrachtungszeitraum 10 Jahre","Period under consideration of 10 years","Period under consideration of 10 years","Beschouwde termijn 10 jaar","Délai considéré 10 ans","Sledované obdobie 10 rokov","Betrachtungszeitraum 10 Jahre"]
["Bank-Guthabenzinssatz","Bank-Guthabenzinssatz","Interest rate of the bank","Interest rate of the bank","Intrestvoet bank","Taux d'intérêt banque","Úroková miera pohľadávky na účte","Bank-Guthabenzinssatz"]
["Bankguthaben | Stromkostenersparnis [€]","Bankguthaben | Stromkostenersparnis [€]","Bank balances | Savings in electricity costs [€]","Bank balances | Savings in electricity costs [£]","Banksaldo | Stroomkostenbesparing [€]","Solde bancaire | Bénéfice consommation énergétique [€]","Pohľadávka na účte","Bankguthaben | Stromkostenersparnis [€]"]
["Geldanlage Bank","Geldanlage Bank","Funds in the bank","Funds in the bank","Geldbelegging bank","Placement bancaire","Peňažný vklad do banky","Geldanlage Bank"]
["Ölkessel + Speicher","Ölkessel + Speicher","Oil boiler + DHW cylinder","Oil boiler + DHW cylinder","Stookolieketel + boiler","Chaudière fuel avec chauffe-eau","Olejový kotol + ohrievač","Ölkessel + Speicher"]
["Gaskessel + Speicher","Gaskessel + Speicher","Gas boiler + DHW cylinder","Gas boiler + DHW cylinder","Gasketel + boiler","Chaudière gaz avec chauffe-eau","Plynový kotol + ohrievač","Gaskessel + Speicher"]
["E-Speicher","E-Speicher","El. Cylinder","El. Cylinder","Elektrische boiler","Chauffe-eau électrique","E-ohrievač vody","E-Speicher"]
["Endenergiebedarf","Endenergiebedarf","Net energy demand","Net energy demand","Eindenergiebehoefte","Besoin énergétique final","Koncová spotreba energie","Endenergiebedarf"]
[]
["Einstellungen","Einstellungen","Options","Options","Instellingen","Paramètres","Nastavenia","Einstellungen"]
["Allgemeine Einstellungen","Allgemeine Einstellungen","General Setting","General Setting","Algemene instellingen","Paramètres généraux","Všeobecné nastavenia","Allgemeine Einstellungen"]
["Alles zurücksetzen","Alles zurücksetzen","Default values","Default values","Alles resetten","Tout réinitialiser","Obnoviť pôvodné nastavenia","Alles zurücksetzen"]
["Speichern & Zurück","Speichern & Zurück","Save & Back","Save & Back","Opslaan en terug","Sauvegarder et retour","Uložiť & späť","Speichern & Zurück"]
["Strompreis","Strompreis","Electricity price","Electricity price","Stroomprijs","Prix de l'électricité","Cena za elektrinu","Strompreis"]
["Ölpreis","Ölpreis","Oil price","Oil price","Stookolieprijs","Prix du mazout","Cena za olej","Ölpreis"]
["Gaspreis","Gaspreis","Gas price","Gas price","Gasprijs","Prix du gaz","Cena za plyn","Gaspreis"]
["Nutzungsdauer Warmwasser","Nutzungsdauer Warmwasser","Up-time DHW","Up-time DHW","Duur jaarlijks warmwaterverbruik","Durée consommation annuelle eau chaude","Doba čerpania teplej vody","Nutzungsdauer Warmwasser"]
["CO2-Emmision Strom","CO2-Emmision Strom","CO2-emmision electricity","CO2-emmision electricity","CO2-uitstoot stroom","CO2-puissance d'émission électricité","emisia CO2 zo spotreby elektriny","CO2-Emmision Strom"]
["CO2-Emmision Öl","CO2-Emmision Öl","CO2-emmision oil","CO2-emmision oil","CO2-uitstoot stookolie","CO2- puissance d'émission mazout","emisia CO2 zo spotreby oleja","CO2-Emmision Öl"]
["CO2-Emmision Gas","CO2-Emmision Gas","CO2-emmision gas","CO2-emmision gas","CO2-uitstoot gas","CO2-puissance d'émission gaz","emisia CO2 zo spotreby plynu","CO2-Emmision Gas"]
["Wochen/Jahr","Wochen/Jahr","Weeks/year","Weeks/year","Weken/jaar","Semaines/année","týždne/rok","Wochen/Jahr"]
["Kaltwassertemperatur","Kaltwassertemperatur","Cold water temperature","Cold water temperature","Koudwatertemperatuur","Température eau froide","Teplota studenej vody","Kaltwassertemperatur"]
["Strompreissteigerung","Strompreissteigerung","Electricity price increase","Electricity price increase","Stoomprijsstijging","Augmentation prix de l'électricité","Zvyšovanie cien elektriny","Strompreissteigerung"]
["Preissteigerung Öl/Gas","Preissteigerung Öl/Gas","Price increase Oil/Gas","Price increase Oil/Gas","Prijsstijging stookolie/gas","Augmentation prix mazout/gaz","Zvyšovanie cien za olej/ plyn","Preissteigerung Öl/Gas"]
["% pro Jahr","% pro Jahr","% per year","% per year","% per jaar","% par an","% za rok","% pro Jahr"]
["Wärmeverluste Warmwasserverteilung","Wärmeverluste Warmwasserverteilung","Heat loss of hot water distribution","Heat loss of hot water distribution","Warmteverliezen warmwaterverdeling","Déperdition chaleur distribution eau chaude","Tepelné straty pri dostribúcii teplej vody","Wärmeverluste Warmwasserverteilung"]
["Mittlerer Durchfluss","Mittlerer Durchfluss","Medium volume flow","Medium volume flow","Gemiddelde doorstroom","Debit moyen","Priemerný prietok","Mittlerer Durchfluss"]
["Entnahmedauer","Entnahmedauer","Time of tapping","Time of tapping","Afnameduur","Durée prélèvement","Čas vypúšťania","Entnahmedauer"]
["Entnahmetemperatur","Entnahmetemperatur","Draw-off temperature","Draw-off temperature","Afnametemperatuur","Température prélèvement","Teplota pri vypúšťaní","Entnahmetemperatur"]
["Liter/min","Liter/min","Liter/min","Liter/min","Liter/min.","Litres/min.","liter/min.","Liter/min"]
["min","min","min","min","min.","min.","min.","min"]
["Alle Änderungen werden verworfen. Fortfahren?","Alle Änderungen werden verworfen. Fortfahren?","Restore to standard values ?","Restore to standard values ?","Alle wijzigingen worden verworpen. Verder gaan?","Toutes les modifications sont rejetées. Continuer ?","Všetky zmeny budú zrušené. Pokračovať?","Alle Änderungen werden verworfen. Fortfahren?"]
["Ct/kWh","Ct/kWh","Ct/kWh","Pence/kWh","Ct/kWh","Ct/kWh","Ct/kWh","Ct/kWh"]
["Anteil integrierter Heizstab Wärmepumpe","Anteil integrierter Heizstab Wärmepumpe","Share integrated electric heater heat pump","Share integrated electric heater heat pump","Aandeel geïntegreerde weerstand","Consommation de la résistance d'appoint","Podiel integrovaného ohrievacieho telesa tepelného čerpadla","Anteil integrierter Heizstab Wärmepumpe"]
["Guthabenzinssatz bei Bank-Geldanlage","Guthabenzinssatz bei Bank-Geldanlage","Interest rate of the bank-investments","Interest rate of the bank-investments","Intrestvoet bij bankbelegging","Taux d'intérêt investissement bancaire","Úroková miera peňažného vkladu v banke","Guthabenzinssatz bei Bank-Geldanlage"]
["Energiepreise","Energiepreise","Energy prices","Energy prices","Energieprijzen","Prix d'énergie","Ceny energie","Energiepreise"]
["Photovoltaikanlage","Photovoltaikanlage","Photovoltaic system","Photovoltaic system","Zonnesysteem","Système solaire","Foltovoltické zariadenie","Photovoltaikanlage"]
["Eigenverbrauchsanteil","Eigenverbrauchsanteil","Own consumption","Own consumption","Aandeel eigen verbruik","Part propre consommation","Podiel vlastnej spotreby","Eigenverbrauchsanteil"]
["Davon werden im Haushalt selbst verbraucht:","Davon werden im Haushalt selbst verbraucht:","Own consumption household:","Own consumption household:","Daarvan wordt in het huishouden zelf verbruikt:","Dont sont utilisées par le ménage :","Z toho je v domácnosti vlastná spotreba:","Davon werden im Haushalt selbst verbraucht:"]
["Strombedarf Haushalt","Strombedarf Haushalt","Electricity demand household","Electricity demand household","Stroomverbruik huishouden","Consommation électrique ménagère","Spotreba elektriny v domácnosti","Strombedarf Haushalt"]
["Einspeisevergütung","Einspeisevergütung","Feed-in remuneration","Feed-in remuneration","Vergoeding injectie in het net","Indemnité injection dans le réseau","Vstupná bonifikácia","Einspeisevergütung"]
["Jährlicher Ertrag Solaranlage","Jährlicher Ertrag Solaranlage","Annual yields of solar thermal system","Annual yields of solar thermal system","Jaarlijkse opbrengst zonnesysteem","Bénéfice annuel système solaire","Ročný výnos solárneho zariadenia","Jährlicher Ertrag Solaranlage"]
["Entnahmestellen und Nutzungshäufigkeit","Entnahmestellen und Nutzungshäufigkeit","Taps and frequency of use","Taps and frequency of use","Taps and frequency of use","Taps and frequency of use","Odberné miesta a frekvencia úživania","Entnahmestellen und Nutzungshäufigkeit"]
["Entnahmestellen","Entnahmestellen","Tap points","Tap points","Tap points","Tap points","Odberné miesta  ","Entnahmestellen"]
["Nutzungshäufigkeit","Nutzungshäufigkeit","Frequency of use","Frequency of use","Frequency of use","Frequency of use","Frekvencia užívania","Nutzungshäufigkeit"]
["Warmwasser-Wärmepumpe","Warmwasser-Wärmepumpe","DHW-heatpump","DHW-heatpump","DHW-heatpump","DHW-heatpump","Tepelné čerpadlo na ohrev vody","Warmwasser-Wärmepumpe"]
["Warmwassererzeugung","Warmwassererzeugung","Domestic hot water","Domestic hot water","Domestic hot water","Domestic hot water","Príprava teplej vody","Warmwassererzeugung"]
["Speichertemperatur","Speichertemperatur","Cylinder temperature","Cylinder temperature","Cylinder temperature","Cylinder temperature","Teplota v ohrievači vody","Speichertemperatur"]
["Strom","Strom","Electricity","Electricity","Electricity","Electricity","Elektrina","Strom"]
["Öl","Öl","Oil","Oil","Oil","Oil","Olej","Öl"]
["Gas ","Gas ","Gas","Gas","Gas","Gas","Plyn","Gas "]
["Strom und Photovoltaik","Strom und Photovoltaik","Electricity & PV","Electricity & PV","Electricity & PV","Electricity & PV","Elektrina a fotovoltika","Strom und Photovoltaik"]
["Alter Wärmeerzeuger","Alter Wärmeerzeuger","Old heat generator","Old heat generator","Old heat generator","Old heat generator","Starý zdroj tepla","Alter Wärmeerzeuger"]
["Eingabewerte","Eingabewerte","Input values","Input values","Input values","Input values","Vstupné hodnoty","Eingabewerte"]
["Energieträger","Energieträger","Energy source","Energy source","Energy source","Energy source","Teplonošné médium","Energieträger"]
["Energiepreis","Energiepreis","Energy price","Energy price","Energieprijs","Prix d'énergie","Cena energie","Energiepreis"]
["Wirkungsgrad WWB","Wirkungsgrad WWB","Efficiency DHW","Efficiency DHW","Efficiency DHW","Efficiency DHW","Efektívnosť prípravy teplej vody","Wirkungsgrad WWB"]
["Preissteigerung","Preissteigerung","Price increase","Price increase","Prijsstijging","Augmentation prix","Zvyšovanie ceny","Preissteigerung"]
["CO2-Emmision","CO2-Emmision","CO2-emmision","CO2-emmision","CO2-uitstoot","CO2-puissance d'émission","Emisie CO2","CO2-Emmision"]
["Rechtliche Hinweise","Rechtliche Hinweise","Legal note","Legal note","Juridische informatie","Clause de non-responsabilité","Právne upozornenia","Rechtliche Hinweise"]
["Stiebel Eltron übernimmt keinerlei Gewährleistung oder Garantie dafür, dass die bereitgestellten Angaben, Werte und Informationen oder die mit Hilfe bzw. anhand dieser Informationen, Werte und Angaben ermittelten Werte und Angaben in jeder Hinsicht vollständig, genau, richtig und aktuell sind. \n\nStiebel Eltron behält sich das Recht vor, jederzeit und ohne vorherige Ankündigung Änderungen der bereitgestellten Angaben, Werte und Informationen vorzunehmen.\nIrrtum und Änderungen sind ausdrücklich vorbehalten.\nKeine der bereitgestellten Angaben, Werte und Informationen oder der mit Hilfe bzw. anhand dieser Angaben, Werte und Informationen ermittelten Werte und Angaben sind als Grundlage für eine finanzielle Entscheidung oder für einen sonstigen Zweck anzusehen, sondern dienen vielmehr nur als eine erste unverbindliche Information und als Hilfe zur ersten Orientierung.\n\nUnter keinen Umständen ersetzt die Planungshilfe die Beratung durch Stiebel Eltron oder einen autorisierten Fachplaner.\n\nBitte wenden Sie sich für die konkrete Planung des Projektes an Stiebel Eltron oder einen anderen autorisierten Fachplaner.\n\nDie Haftung von Stiebel Eltron für Schäden jeglicher Art, die sich möglicherweise aus der Nutzung oder Verwendung der bereitgestellten Informationen, Werte und Angaben oder der mit Hilfe bzw. anhand dieser Angaben, Werte und Informationen ermittelten Werte und Angaben, ergeben, ist ausgeschlossen. Dieser Haftungsausschluss gilt nicht, wenn der Schaden auf Vorsatz oder grobe Fahrlässigkeit von Stiebel Eltron zurückzuführen ist sowie bei einer Verletzung des Lebens, des Körpers oder der Gesundheit.","Stiebel Eltron übernimmt keinerlei Gewährleistung oder Garantie dafür, dass die bereitgestellten Angaben, Werte und Informationen oder die mit Hilfe bzw. anhand dieser Informationen, Werte und Angaben ermittelten Werte und Angaben in jeder Hinsicht vollständig, genau, richtig und aktuell sind. \n\nStiebel Eltron behält sich das Recht vor, jederzeit und ohne vorherige Ankündigung Änderungen der bereitgestellten Angaben, Werte und Informationen vorzunehmen.\nIrrtum und Änderungen sind ausdrücklich vorbehalten.\nKeine der bereitgestellten Angaben, Werte und Informationen oder der mit Hilfe bzw. anhand dieser Angaben, Werte und Informationen ermittelten Werte und Angaben sind als Grundlage für eine finanzielle Entscheidung oder für einen sonstigen Zweck anzusehen, sondern dienen vielmehr nur als eine erste unverbindliche Information und als Hilfe zur ersten Orientierung.\n\nUnter keinen Umständen ersetzt die Planungshilfe die Beratung durch Stiebel Eltron oder einen autorisierten Fachplaner.\n\nBitte wenden Sie sich für die konkrete Planung des Projektes an Stiebel Eltron oder einen anderen autorisierten Fachplaner.\n\nDie Haftung von Stiebel Eltron für Schäden jeglicher Art, die sich möglicherweise aus der Nutzung oder Verwendung der bereitgestellten Informationen, Werte und Angaben oder der mit Hilfe bzw. anhand dieser Angaben, Werte und Informationen ermittelten Werte und Angaben, ergeben, ist ausgeschlossen. Dieser Haftungsausschluss gilt nicht, wenn der Schaden auf Vorsatz oder grobe Fahrlässigkeit von Stiebel Eltron zurückzuführen ist sowie bei einer Verletzung des Lebens, des Körpers oder der Gesundheit.","Stiebel Eltron shall not provide any guarantees that the information, values and data provided, or values, information and recommendations determined with the aid or on the basis of such information, values and data, are complete, accurate, correct or current in every respect.\nStiebel Eltron shall reserve the right to make changes to the data, values and information provided at any time and without prior notification.\nErrors excepted. Subject to changes.\nNone of the information, values and data provided or the values, information and recommendations determined with the aid or on the basis of such information, values and data constitutes any basis for a financial decision or for any other purpose, but rather is merely initial non-binding information as an initial guide.\nUnder no circumstances should the following design tool be considered a substitute for consultation with Stiebel Eltron or another authorised expert engineer.\nPlease contact Stiebel Eltron or another authorised expert engineer in relation to specific project design.\nStiebel Eltron shall accept no liability for losses of any kind that may arise from the use of information, values and data provided, or values, information and recommendations determined with the aid or on the basis of such information, values and data. This exclusion of liability shall not apply if the loss is due to intent or gross negligence on the part of Stiebel Eltron or in the event of a fatality, physical injury or damage to health.\n","Stiebel Eltron shall not provide any guarantees that the information, values and data provided, or values, information and recommendations determined with the aid or on the basis of such information, values and data, are complete, accurate, correct or current in every respect.\nStiebel Eltron shall reserve the right to make changes to the data, values and information provided at any time and without prior notification.\nErrors excepted. Subject to changes.\nNone of the information, values and data provided or the values, information and recommendations determined with the aid or on the basis of such information, values and data constitutes any basis for a financial decision or for any other purpose, but rather is merely initial non-binding information as an initial guide.\nUnder no circumstances should the following design tool be considered a substitute for consultation with Stiebel Eltron or another authorised expert engineer.\nPlease contact Stiebel Eltron or another authorised expert engineer in relation to specific project design.\nStiebel Eltron shall accept no liability for losses of any kind that may arise from the use of information, values and data provided, or values, information and recommendations determined with the aid or on the basis of such information, values and data. This exclusion of liability shall not apply if the loss is due to intent or gross negligence on the part of Stiebel Eltron or in the event of a fatality, physical injury or damage to health.\n","Stiebel Eltron geeft geen enkele garantie dat de aangeboden informatie, waarden en gegevens of de met behulp van of aan de hand van deze informatie, waarden en gegevens berekende waarden, informatie en aanbevelingen in elk opzicht volledig, nauwkeurig, juist en actueel zijn. \n\nStiebel Eltron behoudt zich het recht voor om op elk moment zonder voorafgaande kennisgeving wijzigingen aan te brengen in de aangeboden gegevens, waarden en informatie.\nVergissingen en wijzigingen worden door Stiebel Eltron uitdrukkelijk voorbehouden.\nDe aangeboden informatie, waarden en gegevens of de met behulp van of aan de hand van deze informatie, waarden en gegevens berekende waarden, informatie en aanbevelingen betreffen een eerste Stiebel Eltron niet-bindende informatie voorziening die niet kan worden gebruikt als basis voor een financiële beslissing of voor andere doeleinden dan een eerste oriëntatie. \n\nDeze planningshulp kan in geen geval dienen als vervanging voor het persoonlijke advies van Stiebel Eltron of een andere geautoriseerde systeemadviseur. \n\nVoor de concrete planning van uw project dient u zich te allen tijde te wenden tot Stiebel Eltron of een andere geautoriseerde systeemadviseur. \n\nStiebel Eltron aanvaardt op geen enkele wijze aansprakelijkheid voor schade en/of ander nadeel, direct dan wel indirect, die voortvloeit uit het gebruik of de toepassing van de aangeboden informatie, waarden en gegevens of de met behulp van of aan de hand van deze informatie, waarden en gegevens van berekende waarden, informatie en aanbevelingen. De hierboven omschreven uitsluitingen gelden niet in geval van grove nalatigheid, opzet of schade aan leven, lichaam of gezondheid.","STIEBEL ELTRON ne se porte pas garant de l'exactitude, intégralité, actualité et pertinence des informations, valeurs ou données mises à disposition, ni de toute valeur, information ou recommandation établie à l'aide de ces données, valeurs et informations fournies.\nSTIEBEL ELTRON se réserve le droit de modifier, à tout moment et sans avis préalable, les données, valeurs et informations mises à disposition.\nSous réserve de modification et d'erreurs.\nLes informations, valeurs et données, ou les valeurs, informations et recommandations établies à l'aide de ces informations, valeurs et données, ne doivent être utilisées pour aucune prise de décision financière ou autre. Elles sont fournies à titre indicatif uniquement en ne représentent qu'une source approximative d'information.\nL'assistant de planification et les informations fournies ci-après ne remplacent en aucun cas le conseil direct d'un expert STIEBEL ELTRON ou de tout autre spécialiste autorisé.\nPour la planification concrète de votre projet, veuillez contacter STIEBEL ELTRON ou tout autre spécialiste autorisé.\nSTIEBEL ELTRON décline toute responsabilité pour les dommages éventuels découlant de l'utilisation ou du traitement des informations, valeurs et données mises à disposition, ou des valeurs, informations et recommandations établies à l'aide de ces informations, valeurs et données. Cette exclusion de garantie n'est pas valable en cas de dommage intentionnel découlant d'une négligence grave de la part de Stiebel Eltron, ni en cas d'atteinte à la vie, au corps ou à la santé des utilisateurs.\n","Stiebel Eltrom neručí za to, že poskytnuté údaje, hodnoty a informácie alebo, že pomocou týchto informácii, hodnôt a údajov vypočítané, či odvodené hodnoty a údaje sú v každom smere úplné, správne a aktuálne.                                                                                                                                                                                                                                                                             Stiebel Eltron si vyhradzuje právo, kedykoľvek a bez predchádzajúceho upozornenia na zmeny poskytnutých údajov, hodnôt a informácii.\nVyhradzujeme si právo na omyly a zmeny.\nŽiadne z poskytnutých údajov, hodnôt a informácií alebo pomocou, resp. podľa týchto údajov, hodnôt a informácií vypočítané hodnoty a údaje nie sú podkladom pre finančné rozhodnutie alebo pre akýkoľvek iný účel, ale slúžia viac či menej ako prvá nezáväzná informácia a ako pomoc pri jednoduchšej orientácii.\nZa žiadnych okolností nenahrádza táto pomôcka pri plánovaní poradenskú činnosť  Stiebel Eltron alebo iného autorizovaného projektanta. \nRučenie Stiebel Eltron za škody akéhokoľvek druhu, ktoré pravdepodobne vyplývajú z užívania alebo aplikovania poskytnutých informácií, hodnôt a údajov alebo za pomoci resp. na základe týchto údajov, hodnôt a informácií vypočítaných hodnôt a údajov, je vylúčené.\nVylúčenie záruky neplatí, ak bola škoda vyvodená zámerne alebo v dôsledku hrubej nedbanlivosti spoločnosti Stiebel Eltron, ako aj pri ohrození života alebo zdravia.\n","Tecalor übernimmt keinerlei Gewährleistung oder Garantie dafür, dass die bereitgestellten Angaben, Werte und Informationen oder die mit Hilfe bzw. anhand dieser Informationen, Werte und Angaben ermittelten Werte und Angaben in jeder Hinsicht vollständig, genau, richtig und aktuell sind. \n\nTecalor behält sich das Recht vor, jederzeit und ohne vorherige Ankündigung Änderungen der bereitgestellten Angaben, Werte und Informationen vorzunehmen.\nIrrtum und Änderungen sind ausdrücklich vorbehalten.\nKeine der bereitgestellten Angaben, Werte und Informationen oder der mit Hilfe bzw. anhand dieser Angaben, Werte und Informationen ermittelten Werte und Angaben sind als Grundlage für eine finanzielle Entscheidung oder für einen sonstigen Zweck anzusehen, sondern dienen vielmehr nur als eine erste unverbindliche Information und als Hilfe zur ersten Orientierung.\n\nUnter keinen Umständen ersetzt die Planungshilfe die Beratung durch Tecalor oder einen autorisierten Fachplaner.\n\nBitte wenden Sie sich für die konkrete Planung des Projektes an Tecalor oder einen anderen autorisierten Fachplaner.\n\nDie Haftung von Tecalor für Schäden jeglicher Art, die sich möglicherweise aus der Nutzung oder Verwendung der bereitgestellten Informationen, Werte und Angaben oder der mit Hilfe bzw. anhand dieser Angaben, Werte und Informationen ermittelten Werte und Angaben, ergeben, ist ausgeschlossen. Dieser Haftungsausschluss gilt nicht, wenn der Schaden auf Vorsatz oder grobe Fahrlässigkeit von Tecalor zurückzuführen ist sowie bei einer Verletzung des Lebens, des Körpers oder der Gesundheit."]
["Ergebnisse drucken","Ergebnisse drucken","Print results","Print results","Afdruk","Impresssion","Vytlačiť výsledky","Ergebnisse drucken"]
["Einstellungen","Einstellungen","Options","Options","Instellingen","Paramètres","Nastavenia","Einstellungen"]
["Ganzer Bildschirm","Ganzer Bildschirm","Full screen mode","Full screen mode","Volledig scherm modus","Mode plein écran","Celá obrazovka","Ganzer Bildschirm"]
["E-Mail an uns","E-Mail an uns","Send E-Mail","Send E-Mail","E-mail verzenden","Envoyer un mail","Zaslať E-Mail","E-Mail an uns"]
["Programm schließen","Programm schließen","Exit program","Exit program","Programma sluiten","Quitter le programme","Zavrieť program","Programm schließen"]